Workbook

Sheet Title Page
D2: Mobile TeleSystems
B5: Contents
B7: 1. MTS Group statement of profit or loss
B8: 2. MTS Group statement of financial position
B9: 3. MTS Group statement of cash flows
B10: 4. MTS Russia highlights
B11: 5. MTS Armenia highlights
B12: 6. MTS Turkmenistan highlights
B13: 7. MTS Belarus highlights
B14: 8. Group reconciliations
B15: 9. Debt repayment schedule
B16: 10. Average Forex rates
B17: Glossary of terms
B20: Disclaimer

Sheet Statement of profit or loss
B2: MOBILE TELESYSTEMS (NYSE: MBT)
B3: CONDENSED UNAUDITED CONSOLIDATED STATEMENTS OF PROFIT OR LOSS
C4: 2020 | H4: 2021 | M4: 2022
B5: (Amounts in millions of RUB, except share and per share amounts) * | C5: Q1 | D5: Q2 | E5: Q3 | F5: Q4 | G5: Full year | H5: Q1 | I5: Q2 | J5: Q3 | K5: Q4 | L5: Full year | M5: Q1 | N5: Q2 | O5: Q3
B8: Service revenue | C8: 102819 | D8: 103108 | E8: 108356 | F8: 111149 | G8: 425432 | H8: 106560 | I8: 111776 | J8: 118556 | K8: 120775 | L8: 457667 | M8: 117681 | N8: 119922 | O8: 126998
B9: Sales of goods | C9: 13556 | D9: 12196 | E9: 17736 | F9: 20910 | G9: 64398 | H9: 15744 | I9: 15172 | J9: 18039 | K9: 21298 | L9: 70253 | M9: 14284 | N9: 7851 | O9: 10657
B10: Total revenue | C10: 116375 | D10: 115304 | E10: 126092 | F10: 132059 | G10: 489830 | H10: 122304 | I10: 126948 | J10: 136595 | K10: 142073 | L10: 527920 | M10: 131965 | N10: 127773 | O10: 137655
B12: Cost of services | C12: -29052 | D12: -30248 | E12: -30450 | F12: -31567 | G12: -121317 | H12: -30235 | I12: -31609 | J12: -34755 | K12: -36014 | L12: -132613 | M12: -36366 | N12: -37587 | O12: -38089
B13: Cost of goods | C13: -12463 | D13: -11451 | E13: -16136 | F13: -19521 | G13: -59571 | H13: -15330 | I13: -14912 | J13: -17435 | K13: -19598 | L13: -67275 | M13: -13055 | N13: -6999 | O13: -9370
B14: Selling, general and administrative expenses | C14: -22138 | D14: -19940 | E14: -21214 | F14: -24510 | G14: -87802 | H14: -21452 | I14: -24185 | J14: -22889 | K14: -27509 | L14: -96035 | M14: -24253 | N14: -26612 | O14: -27138
B15: Depreciation and amortization | C15: -24658 | D15: -24607 | E15: -25300 | F15: -25578 | G15: -100143 | H15: -26756 | I15: -26731 | J15: -27833 | K15: -29642 | L15: -110962 | M15: -29546 | N15: -29210 | O15: -27845
B16: Other operating income / (expenses) | C16: -2010 | D16: -2977 | E16: -883 | F16: -5549 | G16: -11419 | H16: -1353 | I16: -856 | J16: -1559 | K16: -4839 | L16: -8607 | M16: -3228 | N16: -5697 | O16: -3811
B17: Operating share of the profit of associates | C17: 1092 | D17: 1167 | E17: 1314 | F17: 1475 | G17: 5048 | H17: 1293 | I17: 1700 | J17: 1296 | K17: 1276 | L17: 5565 | M17: 1340 | N17: 954 | O17: 1214
B18: Impairment of non-current assets | C18: -319 | D18: -929 | E18: 21 | F18: -796 | G18: -2023 | H18: 5 | I18: 4 | J18: 0 | K18: 0 | L18: 9 | M18: -207 | N18: -282 | O18: 0
B20: Operating profit | C20: 26827 | D20: 26319 | E20: 33444 | F20: 26013 | G20: 112603 | H20: 28476 | I20: 30359 | J20: 33420 | K20: 25747 | L20: 118002 | M20: 26650 | N20: 22340 | O20: 32616
B22: Finance income | C22: 777 | D22: 1188 | E22: 684 | F22: 787 | G22: 3436 | H22: 864 | I22: 693 | J22: 476 | K22: 485 | L22: 2518 | M22: 403 | N22: -47 | O22: 680
B23: Finance costs | C23: -10308 | D23: -10930 | E23: -9906 | F23: -10934 | G23: -42078 | H23: -9465 | I23: -9601 | J23: -10645 | K23: -11632 | L23: -41343 | M23: -14351 | N23: -16608 | O23: -13834
B24: Other income / (expenses) | C24: 5204 | D24: -1601 | E24: 311 | F24: -543 | G24: 3371 | H24: 318 | I24: 1015 | J24: -488 | K24: -1188 | L24: -343 | M24: -4470 | N24: 9862 | O24: -3169
B26: Profit before tax | C26: 22500 | D26: 14976 | E26: 24533 | F26: 15323 | G26: 77332 | H26: 20193 | I26: 22466 | J26: 22763 | K26: 13412 | L26: 78834 | M26: 8232 | N26: 15547 | O26: 16293
B28: Income tax expense | C28: -4677 | D28: -3585 | E28: -5503 | F28: -2290 | G28: -16055 | H28: -4149 | I28: -5138 | J28: -6154 | K28: 82 | L28: -15359 | M28: -2513 | N28: -3465 | O28: -3548
B30: Profit for the period from continuing operations | C30: 17823 | D30: 11391 | E30: 19030 | F30: 13033 | G30: 61277 | H30: 16044 | I30: 17328 | J30: 16609 | K30: 13494 | L30: 63475 | M30: 5719 | N30: 12082 | O30: 12745
B32: Profit / (loss) after tax for the period from discontinued operation | C32: 94 | D32: 507 | E32: -36 | F32: 231 | G32: 796 | H32: 300 | I32: 140 | J32: 95 | K32: 256 | L32: 791 | M32: -1700 | N32: -967 | O32: -136
B34: Profit/(loss) for the period | C34: 17917 | D34: 11898 | E34: 18994 | F34: 13264 | G34: 62073 | H34: 16344 | I34: 17468 | J34: 16704 | K34: 13750 | L34: 64266 | M34: 4019 | N34: 11115 | O34: 12609
H35: =H34*0.2 -> 3268.8 | I35: =I34*0.2 -> 3493.6 | J35: 3340.8 | K35: 2750 | M35: =M34*0.2 -> 803.8 | N35: =N34*0.2 -> 2223
B36: Attributable to:
B37: Owners of the Company
B38: Profit / (loss) for the period from continuing operations | C38: 17647 | D38: 11244 | E38: 18858 | F38: 12867 | G38: 60616 | H38: 15868 | I38: 17082 | J38: 16372 | K38: 13358 | L38: 62680 | M38: 5555 | N38: 11916 | O38: 12473
B39: Profit / (loss) for the period from discontinued operation | C39: 94 | D39: 507 | E39: -36 | F39: 231 | G39: 796 | H39: 300 | I39: 140 | J39: 95 | K39: 256 | L39: 791 | M39: -1700 | N39: -967 | O39: -136
B40: Profit/(loss) for the period attributable to owners of the Company | C40: 17741 | D40: 11751 | E40: 18822 | F40: 13098 | G40: 61412 | H40: 16168 | I40: 17222 | J40: 16467 | K40: 13614 | L40: 63471 | M40: 3855 | N40: 10949 | O40: 12337
B41: Non-controlling interests
B42: Profit for the period from continuing operations | C42: 176 | D42: 147 | E42: 172 | F42: 166 | G42: 661 | H42: 176 | I42: 246 | J42: 237 | K42: 136 | L42: 795 | M42: 164 | N42: 166 | O42: 272
B43: Profit / (loss) for the period from discontinued operation | C43: 0 | D43: 0 | E43: 0 | F43: 0 | G43: 0 | H43: 0 | I43: 0 | J43: 0 | K43: 0 | L43: 0 | M43: 0 | N43: 0 | O43: 0
B44: Profit for the period attributable to non-controlling interests | C44: 176 | D44: 147 | E44: 172 | F44: 166 | G44: 661 | H44: 176 | I44: 246 | J44: 237 | K44: 136 | L44: 795 | M44: 164 | N44: 166 | O44: 272
B46: Weighted average number of common shares outstanding, in thousands - basic | C46: 1772872 | D46: 1771286 | E46: 1763239 | F46: 1734726 | G46: 1760468 | H46: 1726941 | I46: 1704085 | J46: 1672253 | K46: 1670548 | L46: 1693244 | M46: 1664718 | N46: 1684311 | O46: 1684411
B47: Earnings per share attributable to the Group - basic
B48: EPS from continuing operations | C48: 9.95 | D48: 6.35 | E48: 10.7 | F48: 7.42 | G48: 34.43 | H48: 9.19 | I48: 10.02 | J48: 9.79 | K48: 8 | L48: 37.02 | M48: 3.34 | N48: 7.07 | O48: 7.4
B49: EPS from discontinued operation | C49: 0.05 | D49: 0.29 | E49: -0.02 | F49: 0.13 | G49: 0.45 | H49: 0.17 | I49: 0.08 | J49: 0.06 | K49: 0.15 | L49: 0.47 | M49: -1.02 | N49: -0.57 | O49: -0.08
B50: Total EPS | C50: 10 | D50: 6.64 | E50: 10.68 | F50: 7.55 | G50: 34.88 | H50: 9.36 | I50: 10.1 | J50: 9.85 | K50: 8.15 | L50: 37.49 | M50: 2.32 | N50: 6.5 | O50: 7.32
B52: Weighted average number of common shares outstanding, in thousands - diluted | C52: 1775359 | D52: 1772377 | E52: 1764082 | F52: 1735556 | G52: 1761778 | H52: 1728984 | I52: 1705433 | J52: 1684833 | K52: 1688523 | L52: 1701786 | M52: 1691522 | N52: 1709952 | O52: 1709967
B53: Earnings per share attributable to the Group - diluted
B54: EPS from continuing operations | C54: 9.94 | D54: 6.34 | E54: 10.69 | F54: 7.41 | G54: 34.41 | H54: 9.18 | I54: 10.02 | J54: 9.72 | K54: 7.91 | L54: 36.83 | M54: 3.28 | N54: 6.97 | O54: 7.29
B55: EPS from discontinued operation | C55: 0.05 | D55: 0.29 | E55: -0.02 | F55: 0.13 | G55: 0.45 | H55: 0.17 | I55: 0.08 | J55: 0.06 | K55: 0.15 | L55: 0.46 | M55: -1.01 | N55: -0.57 | O55: -0.08
B56: Total EPS | C56: 9.99 | D56: 6.63 | E56: 10.67 | F56: 7.54 | G56: 34.86 | H56: 9.35 | I56: 10.1 | J56: 9.78 | K56: 8.06 | L56: 37.29 | M56: 2.27 | N56: 6.4 | O56: 7.21
B58: Adjusted OIBDA** | C58: 51804 | D58: 51855 | E58: 58723 | F58: 52387 | G58: 214769 | H58: 55227 | I58: 57086 | J58: 61253 | K58: 55389 | L58: 228955 | M58: 56403 | N58: 51832 | O58: 60461
B59: Adjusted OIBDA margin | C59: 0.445 | D59: 0.45 | E59: 0.466 | F59: 0.397 | G59: 0.438 | H59: 0.452 | I59: 0.45 | J59: 0.448 | K59: 0.39 | L59: 0.434 | M59: 0.427 | N59: 0.406 | O59: 0.439
B61: * Data were retrospectively adjusted on discontinued operation in Ukraine and Nvision Group
B62: **Adjusted OIBDA for 1Q 2020, 2Q2020, 4Q2020 doesn't include a loss from impairment of non-current assets of RUB 342 mln, RUB 938 mln, 807 mln respectively.Adjusted OIBDA for 2020 doesn't include a loss from impairment of non-current assets of RUB 2 088 mln Adjusted OIBDA for 1Q 2022, 2Q 2022 doesn't include a loss from impairment of non-current assets of RUB 207 mln, RUB 282 mln, respectively

Sheet Statement of financial position
B2: MOBILE TELESYSTEMS (NYSE: MBT)
B3: CONDENSED UNAUDITED CONSOLIDATED STATEMENTS OF FINANCIAL POSITION
C4: 2020 | G4: 2021 | K4: 2022
B5: (Amounts in millions of RUB, except share amounts) | C5: Mar 31 | D5: Jun 30 | E5: Sep 30 | F5: Dec 31 | G5: Mar 31 | H5: Jun 30 | I5: Sep 30 | J5: Dec 31 | K5: Mar 31 | L5: Jun 30 | M5: Sep 30
B6: NON-CURRENT ASSETS:
B7: Property, plant and equipment | C7: 265507 | D7: 267873 | E7: 271877 | F7: 284804 | G7: 285044 | H7: 297193 | I7: 302895 | J7: 311250 | K7: 320296 | L7: 313617 | M7: 309039
B8: Investment property | C8: 2765 | D8: 2596 | E8: 2461 | F8: 1889 | G8: 2039 | H8: 2091 | I8: 2299 | J8: 2498 | K8: 1990 | L8: 1995 | M8: 1951
B9: Right-of-use assets | C9: 138826 | D9: 133872 | E9: 131404 | F9: 130503 | G9: 131442 | H9: 130808 | I9: 129778 | J9: 132343 | K9: 129557 | L9: 123665 | M9: 121383
B10: Intangible assets | C10: 120269 | D10: 120306 | E10: 123414 | F10: 128144 | G10: 127356 | H10: 135867 | I10: 140018 | J10: 142951 | K10: 152172 | L10: 153207 | M10: 158953
B11: Investments in associates | C11: 8467 | D11: 8432 | E11: 8739 | F11: 8555 | G11: 8810 | H11: 7537 | I11: 7804 | J11: 8735 | K11: 7809 | L11: 6839 | M11: 8546
B12: Deferred tax assets | C12: 10479 | D12: 9985 | E12: 10469 | F12: 8778 | G12: 9587 | H12: 10583 | I12: 12466 | J12: 11683 | K12: 12063 | L12: 13356 | M12: 13523
B13: Other non-financial assets | C13: 4989 | D13: 5338 | E13: 5540 | F13: 5749 | G13: 5773 | H13: 6372 | I13: 6021 | J13: 5790 | K13: 7121 | L13: 5873 | M13: 4878
B14: Other investments | C14: 11031 | D14: 11007 | E14: 11180 | F14: 9488 | G14: 9704 | H14: 6819 | I14: 4898 | J14: 4591 | K14: 5081 | L14: 8025 | M14: 8358
B15: Accounts receivable, related parties | C15: 10924 | D15: 11064 | E15: 8399 | F15: 5209 | G15: 5219 | H15: 5232 | I15: 5250 | J15: 5000 | K15: 5011 | L15: 1420 | M15: 1882
B16: Bank loans to customers and interbank loans due from banks | C16: 52972 | D16: 53390 | E16: 59035 | F16: 63992 | G16: 71395 | H16: 88544 | I16: 106625 | J16: 118342 | K16: 125365 | L16: 118116 | M16: 123712
B17: Other financial assets | C17: 13540 | D17: 9452 | E17: 11417 | F17: 9738 | G17: 10197 | H17: 9590 | I17: 8486 | J17: 9335 | K17: 11008 | L17: 3428 | M17: 3229
B18: Total non-current assets | C18: 639769 | D18: 633315 | E18: 643935 | F18: 656849 | G18: 666566 | H18: 700636 | I18: 726540 | J18: 752518 | K18: 777473 | L18: 749541 | M18: 755454
B20: CURRENT ASSETS:
B21: Inventories | C21: 14778 | D21: 18067 | E21: 15970 | F21: 15204 | G21: 17115 | H21: 16058 | I21: 14247 | J21: 18981 | K21: 19124 | L21: 13748 | M21: 11892
B22: Trade and other receivables | C22: 38232 | D22: 36591 | E22: 36787 | F22: 32868 | G22: 34562 | H22: 38449 | I22: 38880 | J22: 37897 | K22: 39912 | L22: 33641 | M22: 35365
B23: Accounts receivable, related parties | C23: 6708 | D23: 5308 | E23: 6919 | F23: 8980 | G23: 9065 | H23: 10024 | I23: 7574 | J23: 2287 | K23: 4001 | L23: 3567 | M23: 3886
B24: Bank loans to customers and interbank loans due from banks | C24: 48524 | D24: 44371 | E24: 49281 | F24: 52676 | G24: 58610 | H24: 66838 | I24: 74310 | J24: 87594 | K24: 89893 | L24: 85501 | M24: 95384
B25: Short-term investments | C25: 27886 | D25: 25994 | E25: 26547 | F25: 23434 | G25: 25212 | H25: 27727 | I25: 28748 | J25: 28972 | K25: 27251 | L25: 20607 | M25: 20162
B26: VAT receivable | C26: 9685 | D26: 10504 | E26: 9830 | F26: 8877 | G26: 9076 | H26: 10306 | I26: 11183 | J26: 11746 | K26: 11293 | L26: 10185 | M26: 9340
B27: Income tax assets | C27: 8837 | D27: 3371 | E27: 3215 | F27: 4660 | G27: 3505 | H27: 1724 | I27: 2104 | J27: 2021 | K27: 3295 | L27: 1532 | M27: 5611
B28: Assets held for sale | C28: 422 | D28: 493 | E28: 331 | F28: 667 | G28: 344 | H28: 272 | I28: 262 | J28: 549 | K28: 514 | L28: 2132 | M28: 2177
B29: Advances paid and prepaid expenses, contract and other non-financial current assets | C29: 5113 | D29: 5149 | E29: 5456 | F29: 5661 | G29: 4567 | H29: 5290 | I29: 6192 | J29: 5314 | K29: 6945 | L29: 11955 | M29: 13759
B30: Other financial current assets | C30: 23084 | D30: 21028 | E30: 23405 | F30: 23922 | G30: 23317 | H30: 21939 | I30: 23344 | J30: 27349 | K30: 24767 | L30: 23199 | M30: 22998
B31: Cash and cash equivalents | C31: 101163 | D31: 98253 | E31: 82649 | F31: 85405 | G31: 57267 | H31: 42326 | I31: 21338 | J31: 40590 | K31: 34958 | L31: 57850 | M31: 81094
B32: Total current assets | C32: 284432 | D32: 269129 | E32: 260390 | F32: 262354 | G32: 242640 | H32: 240953 | I32: 228182 | J32: 263300 | K32: 261953 | L32: 263917 | M32: 301668
B34: Total assets | C34: 924201 | D34: 902444 | E34: 904325 | F34: 919203 | G34: 909206 | H34: 941589 | I34: 954722 | J34: 1015818 | K34: 1039426 | L34: 1013458 | M34: 1057122
B36: EQUITY:
B37: Equity attributable to owners of the Company* | C37: 54065 | D37: 27137 | E37: 26451 | F37: 28700 | G37: 44981 | H37: 3545 | I37: -1741 | J37: 9766 | K37: 16852 | L37: -35123 | M37: -20545
B38: Non-controlling interests | C38: 3494 | D38: 3641 | E38: 3825 | F38: 3990 | G38: 4166 | H38: 4412 | I38: 4701 | J38: 4838 | K38: 5001 | L38: 5167 | M38: 5491
B39: Total equity | C39: 57559 | D39: 30778 | E39: 30276 | F39: 32690 | G39: 49147 | H39: 7957 | I39: 2960 | J39: 14604 | K39: 21853 | L39: -29956 | M39: -15054
B41: NON-CURRENT LIABILITIES:
B42: Borrowings | C42: 387862 | D42: 396560 | E42: 391435 | F42: 395143 | G42: 384959 | H42: 369392 | I42: 384513 | J42: 350300 | K42: 365153 | L42: 357343 | M42: 367106
B43: Lease obligation | C43: 142059 | D43: 137099 | E43: 136164 | F43: 134637 | G43: 135366 | H43: 134426 | I43: 132394 | J43: 135800 | K43: 133420 | L43: 126709 | M43: 125178
B44: Deferred tax liabilities | C44: 21684 | D44: 20129 | E44: 20764 | F44: 19191 | G44: 19218 | H44: 20007 | I44: 23095 | J44: 17901 | K44: 18621 | L44: 19687 | M44: 21934
B45: Provisions | C45: 4625 | D45: 5213 | E45: 4980 | F45: 5128 | G45: 5157 | H45: 5246 | I45: 5205 | J45: 7288 | K45: 10342 | L45: 10329 | M45: 10622
B46: Bank deposits and liabilities | C46: 1529 | D46: 1514 | E46: 1683 | F46: 1883 | G46: 1485 | H46: 3654 | I46: 8827 | J46: 14313 | K46: 7625 | L46: 2042 | M46: 8924
B47: Other financial liabilities | C47: 0 | D47: 9 | E47: 63 | F47: 14 | G47: 7 | H47: 174 | I47: 177 | J47: 180 | K47: 812 | L47: 2841 | M47: 3292
B48: Other non-financial liabilities | C48: 1984 | D48: 1887 | E48: 1887 | F48: 1903 | G48: 1947 | H48: 1928 | I48: 1919 | J48: 2012 | K48: 1983 | L48: 1985 | M48: 1993
B49: Total non-current liabilities | C49: 559743 | D49: 562411 | E49: 556976 | F49: 557899 | G49: 548139 | H49: 534827 | I49: 556130 | J49: 527794 | K49: 537956 | L49: 520936 | M49: 539049
B51: CURRENT LIABILITIES:
B52: Borrowings | C52: 35260 | D52: 12022 | E52: 23938 | F52: 34125 | G52: 37206 | H52: 51898 | I52: 64935 | J52: 111839 | K52: 132459 | L52: 139815 | M52: 148658
B53: Lease obligation | C53: 16482 | D53: 16592 | E53: 16778 | F53: 16177 | G53: 17775 | H53: 18185 | I53: 19850 | J53: 18709 | K53: 19675 | L53: 18414 | M53: 19417
B54: Provisions | C54: 14222 | D54: 8750 | E54: 9523 | F54: 13460 | G54: 15082 | H54: 15066 | I54: 14066 | J54: 17479 | K54: 12121 | L54: 14240 | M54: 14517
B55: Trade and other payables | C55: 51830 | D55: 87463 | E55: 69641 | F55: 56017 | G55: 50049 | H55: 100143 | I55: 68492 | J55: 72078 | K55: 61228 | L55: 101504 | M55: 61512
B56: Accounts payable, related parties | C56: 708 | D56: 499 | E56: 776 | F56: 3146 | G56: 1281 | H56: 1610 | I56: 2277 | J56: 4107 | K56: 1758 | L56: 1590 | M56: 1320
B57: Bank deposits and liabilities | C57: 145409 | D57: 139271 | E57: 153665 | F57: 165794 | G57: 150900 | H57: 170585 | I57: 183892 | J57: 207055 | K57: 207174 | L57: 200882 | M57: 234032
B58: Income tax liabilities | C58: 1371 | D58: 2075 | E58: 1401 | F58: 753 | G58: 871 | H58: 1212 | I58: 985 | J58: 768 | K58: 2131 | L58: 1379 | M58: 696
B59: Other financial liabilities | C59: 1285 | D59: 1284 | E59: 1309 | F59: 1109 | G59: 1109 | H59: 448 | I59: 196 | J59: 203 | K59: 658 | L59: 176 | M59: 427
B60: Other non-financial and contract liabilities | C60: 40332 | D60: 41299 | E60: 40042 | F60: 38033 | G60: 37647 | H60: 39658 | I60: 40939 | J60: 41182 | K60: 42413 | L60: 44478 | M60: 52548
B61: Total current liabilities | C61: 306899 | D61: 309255 | E61: 317073 | F61: 328614 | G61: 311920 | H61: 398805 | I61: 395632 | J61: 473420 | K61: 479617 | L61: 522478 | M61: 533127
B63: Total equity and liabilities | C63: 924201 | D63: 902444 | E63: 904325 | F63: 919203 | G63: 909206 | H63: 941589 | I63: 954722 | J63: 1015818 | K63: 1039426 | L63: 1013458 | M63: 1057122
B65: Net debt | C65: ='Group reconciliations'!C15 -> 284819 | D65: ='Group reconciliations'!D15 -> 282524 | E65: ='Group reconciliations'!E15 -> 302374 | F65: ='Group reconciliations'!F15 -> 317618 | G65: ='Group reconciliations'!G15 -> 336260 | H65: ='Group reconciliations'!H15 -> 348530 | I65: ='Group reconciliations'!I15 -> 396671 | J65: ='Group reconciliations'!J15 -> 389470 | K65: ='Group reconciliations'!K15 -> 431036 | L65: ='Group reconciliations'!L15 -> 418968 | M65: ='Group reconciliations'!M15 -> 414791
B66: Net debt/LTM adjusted OIBDA | C66: ='Group reconciliations'!C24 -> 1.3 | D66: ='Group reconciliations'!D24 -> 1.3 | E66: ='Group reconciliations'!E24 -> 1.4 | F66: ='Group reconciliations'!F24 -> 1.5 | G66: ='Group reconciliations'!G24 -> 1.5 | H66: ='Group reconciliations'!H24 -> 1.6 | I66: ='Group reconciliations'!I24 -> 1.8 | J66: ='Group reconciliations'!J24 -> 1.7 | K66: ='Group reconciliations'!K24 -> 1.9 | L66: ='Group reconciliations'!L24 -> 1.9 | M66: ='Group reconciliations'!M24 -> 1.9
B69: *Common stock: 1,998,381,575 shares issued with a par value of 0.1 rubles as of September 30, 2022 and 1,998,381,575 shares issued with a par value of 0.1 rubles as of June 30, 2022. Treasury stock: 313 963 011 common shares at cost as of September 30, 2022 and 314 020 625 common shares at cost as of June 30, 2022

Sheet Statement of cash flows
B2: MOBILE TELESYSTEMS (NYSE: MBT)
B3: CONDENSED UNAUDITED CONSOLIDATED STATEMENTS OF CASH FLOWS
C4: 2020 | I4: 2021 | M4: 2022
B5: (Amounts in millions of RUB) | C5: Mar 31 | D5: Jun 30 | E5: Sep 30 | F5: Dec 31 | G5: Dec 31 | H5: Dec 31 | I5: Mar 31 | J5: Jun 30 | K5: Sep 30 | L5: Dec 31 | M5: Mar 31 | N5: Jun 30 | O5: Jun 30 | P5: Jun 30 | Q5: Sep 30 | R5: Sep 30 | S5: Sep 30
F6: Cash flows from discontinued operations (NVision) | G6: Cash flows from continuing operations | H6: Total | N6: Cash flows from discontinued operations in Czech Republic | O6: Cash flows from continuing operations | Q6: Cash flows from discontinued operations in Czech Republic | R6: Cash flows from continuing operations
B7: CASH FLOWS FROM OPERATING ACTIVITIES:
B9: Profit for the period | C9: 17917 | D9: 29815 | E9: 48808 | F9: -44 | G9: 62117 | H9: 62073 | I9: 16347 | J9: 33812 | K9: 50517 | L9: 64269 | M9: 4020 | N9: -800 | O9: 15936 | P9: 15136 | Q9: -936 | R9: 28678 | S9: 27742
B11: Adjustments for:
B12: Depreciation and amortization | C12: 24701 | D12: 49352 | E12: 74705 | F12: -30 | G12: 100235 | H12: 100205 | I12: 26784 | J12: 53545 | K12: 81408 | L12: 111088 | M12: 29586 | N12: 70 | O12: 58755 | P12: 58825 | Q12: 97 | R12: 86602 | S12: 86699
B13: Finance income | C13: -778 | D13: -1967 | E13: -2652 | F13: -2 | G13: -3437 | H13: -3439 | I13: -864 | J13: -1557 | K13: -2033 | L13: -2518 | M13: -403 | N13: 0 | O13: -356 | P13: -356 | Q13: 0 | R13: -1036 | S13: -1036
B14: Finance costs | C14: 10309 | D14: 21244 | E14: 31155 | F14: 1 | G14: 42084 | H14: 42085 | I14: 9467 | J14: 19070 | K14: 29717 | L14: 41352 | M14: 14358 | N14: 11 | O14: 30958 | P14: 30969 | Q14: 15 | R14: 44793 | S14: 44808
B15: Income tax expense | C15: 4629 | D15: 9233 | E15: 14906 | F15: 1065 | G15: 16126 | H15: 17191 | I15: 4113 | J15: 9254 | K15: 15463 | L15: 15403 | M15: 2456 | N15: -44 | O15: 5978 | P15: 5934 | Q15: -32 | R15: 9526 | S15: 9494
B16: Net foreign exchange loss/gain and change in fair value of financial instruments | C16: -5259 | D16: -3951 | E16: -4391 | F16: -738 | G16: -3592 | H16: -4330 | I16: -421 | J16: -1630 | K16: -1074 | L16: 186 | M16: 5863 | N16: -76 | O16: -3948 | P16: -4024 | Q16: -125 | R16: -836 | S16: -961
B17: Share of the (profit) / loss of associates | C17: -1157 | D17: -2370 | E17: -3742 | F17: 0 | G17: -5321 | H17: -5321 | I17: -1326 | J17: -3081 | K17: -4433 | L17: -5746 | M17: -1390 | N17: 0 | O17: -2412 | P17: -2412 | Q17: 0 | R17: -3695 | S17: -3695
B18: Inventory obsolescence expense | C18: 304 | D18: 658 | E18: 834 | F18: -5 | G18: 896 | H18: 891 | I18: 152 | J18: 637 | K18: 1057 | L18: 1456 | M18: 420 | N18: 47 | O18: 955 | P18: 1002 | Q18: 80 | R18: 1590 | S18: 1670
B19: Allowance for doubtful accounts | C19: -386 | D19: 1392 | E19: 1805 | F19: 25 | G19: 2468 | H19: 2493 | I19: 132 | J19: 62 | K19: 489 | L19: 721 | M19: 721 | N19: -7 | O19: 1232 | P19: 1225 | Q19: -9 | R19: 1772 | S19: 1763
B20: Bank reserves | C20: 2003 | D20: 5347 | E20: 7127 | F20: 0 | G20: 9443 | H20: 9443 | I20: 2017 | J20: 4690 | K20: 7761 | L20: 12262 | M20: 4520 | N20: 0 | O20: 11762 | P20: 11762 | Q20: 0 | R20: 18376 | S20: 18376
B21: Change in provisions | C21: 2738 | D21: -2540 | E21: -1950 | F21: -20 | G21: 1512 | H21: 1492 | I21: 1669 | J21: 1334 | K21: 393 | L21: 3620 | M21: -5851 | N21: -58 | O21: -3257 | P21: -3315 | Q21: -16 | R21: -713 | S21: -729
B22: Provision for fines and penalties related to SEC investigation into former operations in Uzbekistan | C22: 0 | D22: 0 | E22: 0 | F22: 0 | G22: 0 | H22: 0 | I22: 0 | J22: 0 | K22: 0 | L22: 0 | M22: 0 | N22: 0 | O22: 0 | P22: 0 | Q22: 0 | R22: 0 | S22: 0
B23: Other non-cash items | C23: -474 | D23: -1903 | E23: -3241 | F23: 0 | G23: -4393 | H23: -4393 | I23: -1062 | J23: -3610 | K23: -4885 | L23: -4387 | M23: -1221 | N23: 973 | O23: -810 | P23: 163 | Q23: 1159 | R23: -1363 | S23: -204
B24: Loss on sale of Ukraine operations | C24: 0 | D24: -1967 | E24: -1967 | F24: 0 | G24: -2101 | H24: -2101 | I24: 54 | J24: 54 | K24: 54 | L24: 54 | M24: 0 | N24: 0 | O24: 0 | P24: 0 | Q24: 0 | R24: 0 | S24: 0
B25: Impairment of non-current assets | C25: 319 | D25: 1248 | E25: 1227 | F25: 0 | G25: 2023 | H25: 2023 | I25: -5 | J25: -9 | K25: -10 | L25: 17 | M25: 207 | N25: 0 | O25: 489 | P25: 489 | Q25: 0 | R25: 489 | S25: 489
B27: Movements in operating assets and liabilities:
B28: (Increase)/Decrease in trade and other receivables and contract assets | C28: -443 | D28: 1567 | E28: -843 | F28: -316 | G28: 2220 | H28: 1904 | I28: -647 | J28: -4072 | K28: -5375 | L28: -2608 | M28: 963 | N28: -477 | O28: 1694 | P28: 1217 | Q28: -309 | R28: -203 | S28: -512
B29: (Increase)/decrease in bank loans to customers and interbank loans to banks | C29: -9841 | D29: -9919 | E29: -22346 | F29: 0 | G29: -33570 | H29: -33570 | I29: -15312 | J29: -43851 | K29: -72268 | L29: -101897 | M29: -13469 | N29: 0 | O29: -13799 | P29: -13799 | Q29: 0 | R29: -36010 | S29: -36010
B30: (Increase)/Decrease in inventory | C30: 590 | D30: -2960 | E30: -885 | F30: -119 | G30: -511 | H30: -630 | I30: -2111 | J30: -1481 | K30: -94 | L30: -5206 | M30: -295 | N30: 536 | O30: 2917 | P30: 3453 | Q30: 178 | R30: 4163 | S30: 4341
B31: (Increase)/Decrease in VAT receivable | C31: -334 | D31: -1141 | E31: -466 | F31: -2 | G31: 484 | H31: 482 | I31: -216 | J31: -1382 | K31: -2259 | L31: -2821 | M31: 461 | N31: 11 | O31: 1555 | P31: 1566 | Q31: -4 | R31: 2401 | S31: 2397
B32: (Increase)/Decrease in advances paid and prepaid expenses | C32: 626 | D32: -5265 | E32: -4908 | F32: -198 | G32: -6309 | H32: -6507 | I32: 590 | J32: 1388 | K32: 1045 | L32: -2526 | M32: 1184 | N32: 146 | O32: 1673 | P32: 1819 | Q32: 157 | R32: -110 | S32: 47
B33: Increase/(Decrease) in trade and other payables, contract liabilities and other liabilities | C33: 1369 | D33: 2274 | E33: 1383 | F33: -475 | G33: -629 | H33: -1104 | I33: 2860 | J33: 1397 | K33: 4585 | L33: 16544 | M33: -9288 | N33: -441 | O33: -14069 | P33: -14510 | Q33: -130 | R33: -7036 | S33: -7166
B34: Increase/(Decrease) in bank deposits and other bank liabilities | C34: 6112 | D34: 1141 | E34: 13823 | F34: 0 | G34: 27172 | H34: 27172 | I34: -15547 | J34: 6932 | K34: 25363 | L34: 53765 | M34: -8481 | N34: 0 | O34: -9138 | P34: -9138 | Q34: 0 | R34: 28116 | S34: 28116
B35: Payment of fines and penalties related to SEC investigation into former operations in Uzbekistan | C35: 0 | D35: 0 | E35: 0 | F35: 0 | G35: 0 | H35: 0 | I35: 0 | J35: 0 | K35: 0 | L35: 0 | M35: 0 | N35: 0 | O35: 0 | P35: 0 | Q35: 0 | R35: 0 | S35: 0
B36: Dividends received | C36: 268 | D36: 651 | E36: 1791 | F36: 0 | G36: 3676 | H36: 3676 | I36: 706 | J36: 2062 | K36: 3202 | L36: 4794 | M36: 838 | N36: 0 | O36: 2057 | P36: 2057 | Q36: 0 | R36: 3146 | S36: 3146
B37: Income taxes paid | C37: -5311 | D37: -4753 | E37: -10769 | F37: -36 | G37: -15157 | H37: -15193 | I37: -3608 | J37: -7615 | K37: -13111 | L37: -17494 | M37: -2601 | N37: -42 | O37: -5822 | P37: -5864 | Q37: -61 | R37: -12396 | S37: -12457
B38: Interest received | C38: 292 | D38: 1276 | E38: 1668 | F38: 0 | G38: 2727 | H38: 2727 | I38: 548 | J38: 1013 | K38: 1720 | L38: 3150 | M38: 238 | N38: 0 | O38: 513 | P38: 513 | Q38: 0 | R38: 966 | S38: 966
B39: Interest paid, net of interest capitalised | C39: -8690 | D39: -21895 | E39: -31945 | F39: 0 | G39: -41762 | H39: -41762 | I39: -10002 | J39: -18732 | K39: -29439 | L39: -40632 | M39: -13820 | N39: -2 | O39: -28716 | P39: -28718 | Q39: -3 | R39: -41813 | S39: -41816
B40: NET CASH PROVIDED BY OPERATING ACTIVITIES | C40: 39504 | D40: 64567 | E40: 109127 | F40: -894 | G40: 156401 | H40: 155507 | I40: 14318 | J40: 48230 | K40: 87793 | L40: 142846 | M40: 9015 | N40: -153 | O40: 54147 | P40: 53994 | Q40: 61 | R40: 125407 | S40: 125468
B43: CASH FLOWS FROM INVESTING ACTIVITIES:
B45: Aquisition of subsidiary, net of cash acquired | C45: 0 | D45: 69 | E45: -262 | F45: 0 | G45: -262 | H45: -262 | I45: 0 | J45: -4621 | K45: -9821 | L45: -10186 | M45: -5158 | N45: 0 | O45: -7134 | P45: -7134 | Q45: 0 | R45: -12989 | S45: -12989
B46: Purchases of property, plant and equipment | C46: -14361 | D46: -28053 | E46: -44588 | F46: -6 | G46: -66250 | H46: -66256 | I46: -18240 | J46: -35698 | K46: -57137 | L46: -73081 | M46: -25997 | N46: -43 | O46: -40556 | P46: -40599 | Q46: -64 | R46: -50097 | S46: -50161
B47: Purchases of other intangible assets (excl. cost to obtain contracts) | C47: -5844 | D47: -12757 | E47: -19594 | F47: -10 | G47: -31143 | H47: -31153 | I47: -11109 | J47: -19450 | K47: -31082 | L47: -38602 | M47: -11338 | N47: -6 | O47: -18805 | P47: -18811 | Q47: -5 | R47: -25601 | S47: -25606
B48: Cost to obtain and fulfill contracts, paid | C48: -1188 | D48: -2337 | E48: -3745 | F48: 0 | G48: -5442 | H48: -5442 | I48: -1349 | J48: -1823 | K48: -2741 | L48: -4218 | M48: -1126 | N48: 0 | O48: -2109 | P48: -2109 | Q48: 0 | R48: -3262 | S48: -3262
B49: Purchase of 3G and 4G licenses in Ukraine, Russia and Armenia | C49: 0 | D49: 0 | E49: 0 | F49: 0 | G49: 0 | H49: 0 | I49: 0 | J49: 0 | K49: 0 | L49: 0 | M49: 0 | N49: 0 | O49: 0 | P49: 0 | Q49: 0 | R49: 0 | S49: 0
B50: Purchase of Avantage | C50: 0 | D50: -196 | E50: -196 | F50: 0 | G50: -429 | H50: -429 | I50: 0 | J50: 0 | K50: 0 | L50: 0 | M50: 0 | N50: 0 | O50: 0 | P50: 0 | Q50: 0 | R50: 0 | S50: 0
B51: Proceeds from sale of property, plant and equipment and assets held for sale | C51: 782 | D51: 2504 | E51: 4897 | F51: 0 | G51: 6678 | H51: 6678 | I51: 1464 | J51: 2177 | K51: 3906 | L51: 5082 | M51: 1100 | N51: 0 | O51: 1842 | P51: 1842 | Q51: 0 | R51: 3553 | S51: 3553
B52: Purchases of short-term and other investments | C52: -2730 | D52: -5350 | E52: -7306 | F52: 0 | G52: -10054 | H52: -10054 | I52: -4124 | J52: -7586 | K52: -9691 | L52: -13765 | M52: -1238 | N52: 0 | O52: -1304 | P52: -1304 | Q52: 0 | R52: -1990 | S52: -1990
B53: Proceeds from sale of short-term and other investments | C53: 2794 | D53: 7297 | E53: 10478 | F53: 0 | G53: 16012 | H53: 16012 | I53: 2154 | J53: 6214 | K53: 8906 | L53: 13085 | M53: 1974 | N53: 0 | O53: 7681 | P53: 7681 | Q53: 0 | R53: 9594 | S53: 9594
B54: Investments in associates | C54: -1415 | D54: -1415 | E54: -1460 | F54: 0 | G54: -1460 | H54: -1460 | I54: -60 | J54: -60 | K54: -1087 | L54: -1087 | M54: 0 | N54: 0 | O54: -700 | P54: -700 | Q54: 0 | R54: -1347 | S54: -1347
B55: Cash payments and proceeds related to swap contracts | C55: 3722 | D55: 7325 | E55: 5236 | F55: 0 | G55: 5322 | H55: 5322 | I55: -35 | J55: -108 | K55: -349 | L55: -657 | M55: 146 | N55: 0 | O55: -821 | P55: -821 | Q55: 0 | R55: -783 | S55: -783
B56: Proceeds from sale of subsidiaries | C56: 0 | D56: 0 | E56: 2998 | F56: -284 | G56: 3745 | H56: 3461 | I56: 1272 | J56: 1272 | K56: 1272 | L56: 3891 | M56: -86 | N56: 0 | O56: -86 | P56: -86 | Q56: 0 | R56: -129 | S56: -129
B57: Proceeds from sale/liquidation of associates | C57: 0 | D57: 2450 | E57: 2450 | F57: 0 | G57: 2450 | H57: 2450 | I57: 0 | J57: 0 | K57: 3010 | L57: 3014 | M57: 0 | N57: 0 | O57: 0 | P57: 0 | Q57: 0 | R57: 0 | S57: 0
B58: Other investing activities | C58: 0 | D58: 0 | E58: 0 | F58: 0 | G58: 0 | H58: 0 | I58: 77 | J58: 125 | K58: 74 | L58: 92 | M58: 250 | N58: 0 | O58: 379 | P58: 379 | Q58: 0 | R58: 434 | S58: 434
B59: NET CASH USED IN INVESTING ACTIVITIES: | C59: -18240 | D59: -30463 | E59: -51092 | F59: -300 | G59: -80833 | H59: -81133 | I59: -29950 | J59: -59558 | K59: -94740 | L59: -116432 | M59: -41473 | N59: -49 | O59: -61613 | P59: -61662 | Q59: -69 | R59: -82617 | S59: -82686
B62: CASH FLOWS FROM FINANCING ACTIVITIES:
B63: Repayment of notes | C63: -9277 | D63: -30210 | E63: -28127 | F63: 0 | G63: -28167 | H63: -28167 | I63: -10813 | J63: -10813 | K63: -20813 | L63: -20813 | M63: -10000 | N63: 0 | O63: -20523 | P63: -20523 | Q63: 0 | R63: -20796 | S63: -20796
B64: Proceeds from issuance of notes | C64: 15000 | D64: 46757 | E64: 46757 | F64: 0 | G64: 46757 | H64: 46757 | I64: 4350 | J64: 4350 | K64: 4350 | L64: 4350 | M64: 0 | N64: 0 | O64: 29900 | P64: 29900 | Q64: 0 | R64: 49900 | S64: 49900
B65: Repurchase of common stock | C65: 0 | D65: -1088 | E65: -7613 | F65: 0 | G65: -16028 | H65: -16028 | I65: -200 | J65: -15691 | K65: -18390 | L65: -21483 | M65: 0 | N65: 0 | O65: 0 | P65: 0 | Q65: 0 | R65: 0 | S65: 0
B66: Notes and debt issuance cost paid | C66: -18 | D66: -106 | E66: -106 | F66: 0 | G66: -107 | H66: -107 | I66: -55 | J66: -96 | K66: -95 | L66: -96 | M66: 0 | N66: 0 | O66: -135 | P66: -135 | Q66: 0 | R66: -187 | S66: -187
B67: Lease obligation principal paid | C67: -3920 | D67: -7506 | E67: -11458 | F67: -3 | G67: -15051 | H67: -15054 | I67: -4474 | J67: -8465 | K67: -11361 | L67: -16516 | M67: -3453 | N67: -30 | O67: -7807 | P67: -7837 | Q67: -48 | R67: -11953 | S67: -12001
B68: Dividends paid | C68: -22917 | D68: -22918 | E68: -59346 | F68: 0 | G68: -74923 | H68: -74923 | I68: 0 | J68: -1 | K68: -44301 | L68: -61955 | M68: -8 | N68: 0 | O68: -9 | P68: -9 | Q68: 0 | R68: -40951 | S68: -40951
B69: Cash flows from transactions under common control | C69: 0 | D69: 0 | E69: 0 | F69: 0 | G69: 0 | H69: 0 | I69: 0 | J69: 0 | K69: -3474 | L69: -3474 | M69: 0 | N69: 0 | O69: 0 | P69: 0 | Q69: 0 | R69: 0 | S69: 0
B70: Proceeds from loans | C70: 105235 | D70: 106047 | E70: 108414 | F70: 0 | G70: 194645 | H70: 194645 | I70: 828 | J70: 1714 | K70: 46047 | L70: 64311 | M70: 46076 | N70: 219 | O70: 47164 | P70: 47383 | Q70: 219 | R70: 67909 | S70: 68128
B71: Repayment of loans | C71: -43294 | D71: -63585 | E71: -63859 | F71: 0 | G71: -134483 | H71: -134483 | I71: -2348 | J71: -2680 | K71: -9133 | L71: -15538 | M71: -5432 | N71: 0 | O71: -11512 | P71: -11512 | Q71: -140 | R71: -35861 | S71: -36001
B72: Cash inflow under credit guarantee agreement related to foreign-currency hedge | C72: 0 | D72: 0 | E72: 0 | F72: 0 | G72: 0 | H72: 0 | I72: 0 | J72: 0 | K72: 0 | L72: 0 | M72: 0 | N72: 0 | O72: 0 | P72: 0 | Q72: 0 | R72: 0 | S72: 0
B73: Other financing activities | C73: - | D73: 0 | E73: - | F73: 0 | G73: 0 | H73: 0 | I73: 0 | J73: 0 | K73: 0 | L73: 0 | M73: -1999 | N73: 0 | O73: -1900 | P73: -1900 | Q73: 0 | R73: -1898 | S73: -1898
B74: NET CASH USED IN FINANCING ACTIVITIES | C74: 40809 | D74: 27391 | E74: -15338 | F74: -3 | G74: -27357 | H74: -27360 | I74: -12712 | J74: -31682 | K74: -57170 | L74: -71214 | M74: 25184 | N74: 189 | O74: 35178 | P74: 35367 | Q74: 31 | R74: 6163 | S74: 6194
B77: Effect of exchange rate changes on cash and cash equivalents | C77: 1020 | D77: -1312 | E77: 1882 | F77: 0 | G77: 385 | H77: 385 | I77: 142 | J77: -133 | K77: -14 | L77: -79 | M77: 1642 | N77: -11 | O77: -10425 | P77: -10436 | Q77: -54 | R77: -8339 | S77: -8393
B78: Intercompany cash flows | F78: 857 | G78: -857 | N78: -204 | O78: 204 | Q78: -118 | R78: 118
B80: NET INCREASE / (DECREASE) IN CASH AND CASH EQUIVALENTS: | C80: 63093 | D80: 60183 | E80: 44579 | F80: -340 | G80: 47739 | H80: 47399 | I80: -28202 | J80: -43143 | K80: -64131 | L80: -44879 | M80: -5632 | N80: -228 | O80: 17491 | P80: 17263 | Q80: -149 | R80: 40732 | S80: 40583
B82: CASH AND CASH EQUIVALENTS, beginning of the period | C82: 38070 | D82: 38070 | E82: 38070 | F82: 340 | G82: 37730 | H82: 38070 | I82: 85469 | J82: 85469 | K82: 85469 | L82: 85469 | M82: 40590 | N82: 231 | O82: 40359 | P82: 40590 | Q82: 231 | R82: 40359 | S82: 40590
B84: CASH AND CASH EQUIVALENTS, end of the period | C84: 101163 | D84: 98253 | E84: 82649 | F84: 0 | G84: 85469 | H84: 85469 | I84: 57267 | J84: 42326 | K84: 21338 | L84: 40590 | M84: 34958 | N84: 3 | O84: 57850 | P84: 57853 | Q84: 82 | R84: 81091 | S84: 81173
B85: Less cash and cash equivalents within assets held for sale | G85: -64 | H85: -64 | I85: 0 | J85: 0 | K85: 0 | L85: 0 | M85: 0 | N85: -3 | O85: 0 | P85: -3 | Q85: -80 | R85: 0 | S85: -80
B86: CASH AND CASH EQUIVALENTS, end of the period | C86: 101163 | D86: 98253 | E86: 82649 | F86: 0 | G86: 85405 | H86: 85405 | I86: 57267 | J86: 42326 | K86: 21338 | L86: 40590 | M86: 34958 | N86: 0 | O86: 57850 | P86: 57850 | Q86: 2 | R86: 81091 | S86: 81093
B88: CAPEX (for the quarter) | C88: =-SUM(C46:C47, C49) -> 20205 | D88: =-SUM(D46:D47, D49)+SUM(C46:C47, C49) -> 20605 | E88: =-SUM(E46:E47, E49)+SUM(D46:D47, D49) -> 23372 | H88: =-SUM(H46:H47, H49)+SUM(E46:E47, E49) -> 33227 | I88: =-SUM(I46:I47, I49) -> 29349 | J88: =-SUM(J46:J47, J49)+SUM(I46:I47, I49) -> 25799 | K88: =-SUM(K46:K47, K49)+SUM(J46:J47, J49) -> 33071 | L88: =-SUM(L46:L47, L49)+SUM(K46:K47, K49) -> 23464 | M88: =-SUM(M46:M47, M49) -> 37335 | P88: =-SUM(P46:P47, P49)+SUM(M46:M47, M49) -> 22075 | S88: =-SUM(S46:S47, S49)+SUM(P46:P47, P49) -> 16357
B89: CAPEX excluding purchases of 3G, 4G license in Ukraine and Russia and net of cash proceeds under sharing agreement (for the quarter) | C89: 20205 | D89: 20116 | E89: 23372 | H89: 33216 | I89: 29320 | J89: 25799 | K89: 33071 | L89: 22792 | M89: 37335 | P89: 22039 | S89: =S88-859 -> 15498
B90: CAPEX as % of Revenue* | C90: n/a | D90: n/a | E90: n/a | H90: n/a | I90: n/a | J90: n/a | K90: n/a | L90: n/a | M90: n/a | P90: n/a | S90: n/a
B91: Cost to obtain and fulfill contracts | C91: =-C48 -> 1188 | D91: =-D48+C48 -> 1149 | E91: =-E48+D48 -> 1408 | H91: =-H48+E48 -> 1697 | I91: =-I48 -> 1349 | J91: =-J48+I48 -> 474 | K91: =-K48+J48 -> 918 | L91: =-L48+K48 -> 1477 | M91: =-M48 -> 1126 | P91: =-P48+M48 -> 983 | S91: =-S48+P48 -> 1153
B93: FCF | C93: ='Group reconciliations'!C50 -> 17478 | D93: ='Group reconciliations'!D50 -> 24832 | E93: ='Group reconciliations'!E50 -> 49627 | H93: ='Group reconciliations'!F50 -> 63094 | I93: ='Group reconciliations'!G50 -> -13704 | J93: ='Group reconciliations'!H50 -> -9973 | K93: ='Group reconciliations'!I50 -> -5887 | L93: ='Group reconciliations'!J50 -> 27659 | M93: ='Group reconciliations'!K50 -> -33590 | P93: ='Group reconciliations'!L50 -> -13603 | S93: ='Group reconciliations'!M50 -> 35527
B94: FCF ex-Bank & cash proceeds from sale of VF Ukraine | C94: 17991 | D94: 32825 | E94: 51175 | H94: 62065 | I94: 11353 | J94: 16852 | K94: 22968 | L94: 53922 | M94: -19955 | P94: -5338 | S94: 17690

Sheet Russia
B2: Country highlights: | C2: 2020 | H2: 2021 | M2: 2022
B3: Russia | C3: Q1 | D3: Q2 | E3: Q3 | F3: Q4 | G3: Full year | H3: Q1 | I3: Q2 | J3: Q3 | K3: Q4 | L3: Full year | M3: Q1 | N3: Q2 | O3: Q3
B5: RUB/USD | C5: 66.38 | D5: ='Ave Forex Rates'!O5 -> 72.36 | E5: ='Ave Forex Rates'!P5 -> 73.56 | F5: ='Ave Forex Rates'!Q5 -> 76.22 | G5: ='Ave Forex Rates'!R5 -> 72.146445 | H5: ='Ave Forex Rates'!S5 -> 74.34 | I5: ='Ave Forex Rates'!T5 -> 74.22 | J5: ='Ave Forex Rates'!U5 -> 73.47 | K5: ='Ave Forex Rates'!V5 -> 72.6 | L5: ='Ave Forex Rates'!W5 -> 73.65 | M5: ='Ave Forex Rates'!X5 -> 86.07 | N5: ='Ave Forex Rates'!Y5 -> 66.63 | O5: ='Ave Forex Rates'!Z5 -> 59.43
B7: Amounts in millions of RUB, unless stated
B8: Total revenue | C8: 114833 | D8: 113769 | E8: 124334 | F8: 130041 | G8: 482977 | H8: 120794 | I8: 125311 | J8: 134824 | K8: 140085 | L8: 521014 | M8: 129983 | N8: 126026 | O8: 135830
B9: B2C | C9: 79278 | D9: 77979 | E9: 86309 | F9: 90179 | G9: 333745 | H9: 83986 | I9: 86166 | J9: 93230 | K9: 95197 | L9: 358579 | M9: 88903 | N9: 85876 | O9: 93294
B10: Connectivity | C10: 60744 | D10: 60719 | E10: 63785 | F10: 63757 | G10: 249005 | H10: 61786 | I10: 63623 | J10: 66378 | K10: 64866 | L10: 256653 | M10: 64345 | N10: 65005 | O10: 67617
B11: sales of handsets | C11: 12062 | D11: 11313 | E11: 15728 | F11: 19070 | G11: 58173 | H11: 13884 | I11: 12605 | J11: 15870 | K11: 18085 | L11: 60444 | M11: 11438 | N11: 6631 | O11: 8376
B12: bank revenue | C12: 6166 | D12: 5907 | E12: 6726 | F12: 7191 | G12: 25990 | H12: 8094 | I12: 9752 | J12: 10745 | K12: 11622 | L12: 40213 | M12: 12446 | N12: 13370 | O12: 16380
B13: other | C13: 306 | D13: 40 | E13: 70 | F13: 161 | G13: 577 | H13: 222 | I13: 186 | J13: 237 | K13: 624 | L13: 1269 | M13: 674 | N13: 870 | O13: 921
B14: B2B/G | C14: 22345 | D14: 21698 | E14: 23367 | F14: 25264 | G14: 92674 | H14: 23282 | I14: 24900 | J14: 26399 | K14: 30109 | L14: 104690 | M14: 27240 | N14: 27645 | O14: 29860
B15: Connectivity (ex bulk sms) | C15: 13955 | D15: 14250 | E15: 14088 | F15: 15366 | G15: 57659 | H15: 14871 | I15: 15318 | J15: 16446 | K15: 17215 | L15: 63850 | M15: 16089 | N15: 17184 | O15: 17302
B16: Marketer | C16: 4227 | D16: 3901 | E16: 4703 | F16: 5296 | G16: 18127 | H16: 4202 | I16: 4551 | J16: 5172 | K16: 6445 | L16: 20370 | M16: 5235 | N16: 5531 | O16: 6389
B17: sales of handsets | C17: 1216 | D17: 619 | E17: 1188 | F17: 1267 | G17: 4290 | H17: 1576 | I17: 2350 | J17: 1843 | K17: 2651 | L17: 8420 | M17: 2370 | N17: 1238 | O17: 1885
B18: bank revenue | C18: 2162 | D18: 2103 | E18: 2101 | F18: 2076 | G18: 8442 | H18: 1722 | I18: 1691 | J18: 1706 | K18: 1914 | L18: 7033 | M18: 2056 | N18: 2139 | O18: 1986
B19: cloud&other | C19: 785 | D19: 825 | E19: 1287 | F19: 1259 | G19: 4156 | H19: 911 | I19: 990 | J19: 1232 | K19: 1884 | L19: 5017 | M19: 1490 | N19: 1553 | O19: 2298
B20: B2O | C20: 16865 | D20: 18072 | E20: 18202 | F20: 18483 | G20: 71622 | H20: 17432 | I20: 18355 | J20: 20047 | K20: 19818 | L20: 75652 | M20: 19176 | N20: 18419 | O20: 19038
B21: - eliminations | C21: -3655 | D21: -3980 | E21: -3544 | F21: -3885 | G21: -15064 | H21: -3906 | I21: -4110 | J21: -4852 | K21: -5039 | L21: -17907 | M21: -5336 | N21: -5914 | O21: -6362
B22: Operating profit | C22: 26351 | D22: 25626 | E22: 32497 | F22: 25357 | G22: 109831 | H22: 27884 | I22: 29781 | J22: 32784 | K22: 25330 | L22: 115779 | M22: 25746 | N22: 22185 | O22: 32286
B23: - operating margin, % | C23: 0.229 | D23: 0.225 | E23: 0.261 | F23: 0.195 | G23: 0.227 | H23: 0.231 | I23: 0.238 | J23: 0.243 | K23: 0.181 | L23: 0.222 | M23: 0.198 | N23: 0.176 | O23: 0.238
B24: Depreciation and amortization | C24: 24218 | D24: 24118 | E24: 24770 | F24: 24990 | G24: 98096 | H24: 26177 | I24: 26210 | J24: 27189 | K24: 29038 | L24: 108614 | M24: 28939 | N24: 28740 | O24: 27369
B25: - as % of revenue | C25: 0.211 | D25: 0.212 | E25: 0.199 | F25: 0.192 | G25: 0.203 | H25: 0.217 | I25: 0.209 | J25: 0.202 | K25: 0.207 | L25: 0.208 | M25: 0.223 | N25: 0.228 | O25: 0.201
B26: Adjusted OIBDA ** | C26: 50911 | D26: 50683 | E26: 57268 | F26: 51154 | G26: 210016 | H26: 54060 | I26: 55991 | J26: 59975 | K26: 54370 | L26: 224396 | M26: 54892 | N26: 51207 | O26: 59655
B27: Adjusted OIBDA margin, % | C27: 0.443 | D27: 0.445 | E27: 0.461 | F27: 0.393 | G27: 0.435 | H27: 0.448 | I27: 0.447 | J27: 0.445 | K27: 0.388 | L27: 0.431 | M27: 0.422 | N27: 0.406 | O27: 0.439
B28: Net profit | C28: 16805 | D28: 11064 | E28: 17593 | F28: 11792 | G28: 57254 | H28: 15246 | I28: 16865 | J28: 15792 | K28: 13115 | L28: 61018 | M28: 3026 | N28: 11975 | O28: 11915
B29: - margin, % | C29: 0.146 | D29: 0.097 | E29: 0.141 | F29: 0.091 | G29: 0.119 | H29: 0.126 | I29: 0.135 | J29: 0.117 | K29: 0.094 | L29: 0.117 | M29: 0.023 | N29: 0.095 | O29: 0.088
B30: CAPEX | C30: 19862 | D30: 20137 | E30: 22956 | F30: 32310 | G30: 95265 | H30: 29077 | I30: 25460 | J30: 32641 | K30: 22526 | L30: 109704 | M30: 37154 | N30: 21718 | O30: 16305
B31: CAPEX excluding purchases of 4G license and net of sharing | C31: 19862 | D31: 19648 | E31: 22956 | F31: 32299 | G31: 94765 | H31: 29048 | I31: 25460 | J31: 32641 | K31: 21854 | L31: 109003 | M31: 37154 | N31: 21682 | O31: 15446
B32: - as % of revenue | C32: 0.173 | D32: 0.173 | E32: 0.185 | F32: 0.248 | G32: 0.196 | H32: 0.24 | I32: 0.203 | J32: 0.242 | K32: 0.156 | L32: 0.209 | M32: 0.286 | N32: 0.172 | O32: 0.114
B33: Cost to obtain and fulfill contracts | C33: 1188 | D33: 1149 | E33: 1408 | F33: 1697 | G33: 5442 | H33: 1349 | I33: 474 | J33: 918 | K33: 1477 | L33: 4218 | M33: 1126 | N33: 983 | O33: 1153
B35: Informative
B36: Total revenue
B37: connectivity (B2C, B2B, incl Marketer, B2O) | C37: 95791 | D37: 96942 | E37: 100778 | F37: 102902 | G37: 396413 | H37: 98291 | I37: 101847 | J37: 108043 | K37: 108344 | L37: 416525 | M37: 104845 | N37: 106139 | O37: 110346
B38: Bank | C38: 8328 | D38: 8010 | E38: 8827 | F38: 9267 | G38: 34432 | H38: 9816 | I38: 11443 | J38: 12451 | K38: 13536 | L38: 47246 | M38: 14502 | N38: 15509 | O38: 18366
B39: sales of handsets | C39: 13278 | D39: 11932 | E39: 16916 | F39: 20337 | G39: 62463 | H39: 15460 | I39: 14955 | J39: 17713 | K39: 20736 | L39: 68864 | M39: 13808 | N39: 7869 | O39: 10261
B40: other | C40: 1091 | D40: 865 | E40: 1357 | F40: 1420 | G40: 4733 | H40: 1133 | I40: 1176 | J40: 1469 | K40: 2508 | L40: 6286 | M40: 2164 | N40: 2423 | O40: 3219
B41: - eliminations | C41: -3655 | D41: -3980 | E41: -3544 | F41: -3885 | G41: -15064 | H41: -3906 | I41: -4110 | J41: -4852 | K41: -5039 | L41: -17907 | M41: -5336 | N41: -5914 | O41: -6362
B43: MTS-Bank
B44: Amounts in millions of RUB, unless otherwise indicated
B45: Revenue | C45: 8498 | D45: 8209 | E45: 8956 | F45: 9381 | G45: 35044 | H45: 9956 | I45: 11628 | J45: 12654 | K45: 14102 | L45: 48340 | M45: 14704 | N45: 15657 | O45: 18534
B46: OIBDA | C46: 404 | D46: -811 | E46: 1561 | F46: 1260 | G46: 2414 | H46: 1896 | I46: 2887 | J46: 2566 | K46: 450 | L46: 7799 | M46: 1471 | N46: -1634 | O46: 3751
B47: OIBDA margin, % | C47: 0.048 | D47: n/a | E47: 0.174 | F47: 0.134 | G47: 0.069 | H47: 0.19 | I47: 0.248 | J47: 0.203 | K47: 0.032 | L47: 0.161 | M47: 0.1 | N47: n/a | O47: 0.202
B48: Net profit | C48: 214 | D48: -1138 | E48: 1175 | F48: 870 | G48: 1121 | H48: 1440 | I48: 1924 | J48: 1756 | K48: -137 | L48: 4983 | M48: 751 | N48: -1985 | O48: 2833
B49: - margin, % | C49: 0.025 | D49: n/a | E49: 0.131 | F49: 0.093 | G49: 0.032 | H49: 0.145 | I49: 0.165 | J49: 0.139 | K49: n/a | L49: 0.103 | M49: 0.051 | N49: n/a | O49: 0.153
B50: Total retail loan portfolio at the end of the period, mln RUB | C50: 98104 | D50: 99281 | E50: 107196 | F50: 117604 | G50: 117604 | H50: 132111 | I50: 158199 | J50: 180805.636 | K50: 205613 | L50: 205613 | M50: 218698 | N50: 222916 | O50: 237094
B52: Fintech
B53: Amounts in millions of RUB, unless otherwise indicated
B54: Revenue | C54: 8488 | D54: 8189 | E54: 9017 | F54: 9469 | G54: 35163 | H54: 10098 | I54: 11574 | J54: 12634 | K54: 14121.16007 | L54: 48427.16007 | M54: 14896.99248 | N54: 15877 | O54: 18679.72919
B55: OIBDA | C55: 593 | D55: -555 | E55: 1874 | F55: 1129 | G55: 3041 | H55: 1976 | I55: 2623 | J55: 2405 | K55: 152.1819492 | L55: 7156.181949 | M55: 959.5339196 | N55: -1767 | O55: 3520.07162
B56: OIBDA margin, % | C56: 0.07 | D56: n/a | E56: 0.208 | F56: 0.119 | G56: 0.086 | H56: 0.196 | I56: 0.227 | J56: 0.19 | K56: 0.01077687303 | L56: 0.1477720754 | M56: 0.064 | N56: n/a | O56: 0.1884433968
B57: CAPEX | C57: 485 | D57: 686 | E57: 534 | F57: 1478 | G57: 3183 | H57: 635 | I57: 759 | J57: 718 | K57: 2014 | L57: 4126 | M57: 1608 | N57: 557 | O57: 830
B58: - as % of revenue | C58: 0.057 | D58: 0.084 | E58: 0.059 | F58: 0.156 | G58: 0.091 | H58: 0.063 | I58: 0.066 | J58: 0.057 | K58: 0.1426228433 | L58: 0.08520012312 | M58: 0.108 | N58: 0.035 | O58: 0.044
B60: Media
B61: Amounts in millions of RUB, unless otherwise indicated
B62: Revenue | C62: 2460 | D62: 2553 | E62: 2716 | F62: 2859 | G62: 10588 | H62: 3050 | I62: 3356 | J62: 3540 | K62: 3780.746821 | L62: 13726.74682 | M62: 3827.639982 | N62: 3761 | O62: 3936
B63: OIBDA | C63: 1346 | D63: 993 | E63: 981 | F63: 906 | G63: 4226 | H63: 1435 | I63: 1169 | J63: 1226 | K63: 1824.353449 | L63: 5654.353449 | M63: 1581.211144 | N63: 2076.20074 | O63: 1951
B64: OIBDA margin, % | C64: 0.547 | D64: 0.389 | E64: 0.361 | F64: 0.317 | G64: 0.399 | H64: 0.47 | I64: 0.348 | J64: 0.354 | K64: 0.4825378518 | L64: 0.4119223238 | M64: 0.413 | N64: 0.552 | O64: 0.496
B65: CAPEX | C65: 312 | D65: 808 | E65: 1044 | F65: 1478 | G65: 3642 | H65: 1255 | I65: 1191 | J65: 1404 | K65: 1910 | L65: 5760 | M65: 2686 | N65: 1531 | O65: 1536
B66: - as % of revenue | C66: 0.127 | D66: 0.316 | E66: 0.384 | F66: 0.517 | G66: 0.344 | H66: 0.411 | I66: 0.355 | J66: 0.397 | K66: 0.5051911938 | L66: 0.419618725 | M66: 0.702 | N66: 0.4070725871 | O66: 0.3902439024
B68: Retail
B69: Amounts in millions of RUB, unless otherwise indicated
B70: Revenue *** | C70: 18325 | D70: 15658 | E70: 21040 | F70: 24485 | G70: 79508 | H70: 19555 | I70: 18926 | J70: 22481 | K70: 25472.95068 | L70: 86434.95068 | M70: 18239.03824 | N70: 11360 | O70: 13258
B71: OIBDA | C71: 750 | D71: 1265 | E71: 1722 | F71: 1221 | G71: 4958 | H71: 453 | I71: 2064 | J71: 1477 | K71: 2184.025107 | L71: 6178 | M71: 1857.024963 | N71: 1852 | O71: 2037
B72: OIBDA margin, % | C72: 0.041 | D72: 0.081 | E72: 0.082 | F72: 0.05 | G72: 0.062 | H72: 0.023 | I72: 0.018 | J72: 0.066 | K72: 0.08573899171 | L72: 0.05156507954 | M72: 0.102 | N72: 0.163028169 | O72: 0.154
B73: CAPEX | C73: 169 | D73: 65 | E73: 160 | F73: 500 | G73: 894 | H73: 94 | I73: 129 | J73: 336 | K73: 330.1380764 | L73: 889.1380764 | M73: 249.4 | N73: 249 | O73: 387
B74: - as % of revenue | C74: 0.009 | D74: 0.004 | E74: 0.008 | F74: 0.02 | G74: 0.011 | H74: 0.005 | I74: 0.007 | J74: 0.015 | K74: 0.01296033901 | L74: 0.01028678873 | M74: 0.014 | N74: 0.03089788732 | O74: 0.02918992307
B76: MTS-bank, operating highlights
B77: MTS Bank clients, thou | C77: 2460 | D77: 2385 | E77: 2413 | F77: 2473 | G77: 2473 | H77: 2578 | I77: 2629 | J77: 2810 | K77: 2961 | L77: 2961 | M77: 3031 | N77: 3117 | O77: 3317
B78: o/w daily banking clients | C78: 1589 | D78: 1541 | E78: 1557 | F78: 1639 | G78: 1639 | H78: 1770 | I78: 1826 | J78: 1954 | K78: 2020 | L78: 2020 | M78: 2049 | N78: 2086 | O78: 2187
B79: MTS Bank mobile app users, thou | C79: 1024 | D79: 1025 | E79: 1090.173 | F79: 1186 | G79: 1186 | H79: 1343.531 | I79: 1371.6 | J79: 1403 | K79: 1789 | L79: 1789 | M79: 1825 | N79: 1872 | O79: 1974
B81: Telecom operating highlights
B82: Mobile business
B83: MTS subscribers, mln | C83: 78.5 | D83: 77.2 | E83: 78.2 | F83: 78.5 | G83: 78.5 | H83: 78.4 | I83: 78.6 | J83: 79.7 | K83: 80.4 | L83: 80.4 | M83: 80 | N83: 80 | O83: 80.2
B84: Total traffic, bln minutes | C84: 88.6 | D84: 95.1 | E84: 95.15 | F84: 96.3 | G84: 375.2 | H84: 87.5 | I84: 90.5 | J84: 90.1 | K84: 89.1 | L84: 357.2 | M84: 82.3 | N84: 81.7 | O84: 82.1
B85: Total smartphone data, Tb | C85: 1396821 | D85: 1449143 | E85: 1555430 | F85: 1691894 | G85: 6093288 | H85: 1692755 | I85: 1778407 | J85: 1926830 | K85: 2048374 | L85: 7446366 | M85: 2085328 | N85: 2036210 | O85: 2168090
B87: Fixed business
B88: Residential
B89: Number of subscribers, thou
B90: - fixed telephony | C90: 2790 | D90: 2765 | E90: 2716 | F90: 2671 | G90: 2671 | H90: 2612 | I90: 2566 | J90: 2519 | K90: 2467 | L90: 2467 | M90: 2421 | N90: 2378 | O90: 2337
B91: - internet | C91: 3559 | D91: 3659 | E91: 3758 | F91: 3839 | G91: 3839 | H91: 3885 | I91: 4035 | J91: 4118 | K91: 4200 | L91: 4200 | M91: 4247 | N91: 4280 | O91: 4344
B92: - TV | C92: 3065 | D92: 3144 | E92: 3207 | F92: 3274 | G92: 3274 | H92: 3324 | I92: 3420 | J92: 3459 | K92: 3502 | L92: 3502 | M92: 3523 | N92: 3531 | O92: 3550.191
B93: MGTS (B2C+B2B)
B94: - GPON subs, thou | C94: 2111.165 | D94: 2137 | E94: 2161.977 | F94: 2191 | G94: 2191 | H94: 2203.776 | I94: 2221 | J94: 2241 | K94: 2258.941 | L94: 2258.941 | M94: 2266.38 | N94: 2266 | O94: 2271.613
B96: Media, operating highlights
B97: Number of TV users, thou | C97: 4591.622 | D97: 4908 | E97: 5631 | F97: 6579 | G97: 6579 | H97: 7058 | I97: 7443 | J97: 7822 | K97: 8350 | L97: 8350 | M97: 9041 | N97: 9349 | O97: 10138
B98: o/w OTT services users, thou | C98: 1001.667 | D98: 1192 | E98: 1778 | F98: 2548 | G98: 2548 | H98: 2890 | I98: 3216 | J98: 3500 | K98: 4032 | L98: 4032 | M98: 4702 | N98: 4930 | O98: 5688
B100: Other operating highlights
B101: Number of ecosystem clients, thou | E101: 6167 | F101: 6313 | G101: 6313 | H101: 6456 | I101: 7371 | J101: 7801 | K101: 8848 | L101: 8848 | M101: 10982 | N101: 12259 | O101: 12752.969
B102: Ecosystem revenue, mln | F102: 15152 | H102: 15263 | I102: 17042 | J102: 18732 | K102: 19255 | L102: 70292 | M102: 24318 | N102: 24856 | O102: 33606
B103: Mobile Internet indicators
B104: Mobile Internet users penetration, as % from monthly active users | C104: 0.635 | D104: 0.637 | E104: 0.646 | F104: 0.653 | G104: 0.653 | H104: 0.663 | I104: 0.662 | J104: 0.665 | K104: 0.665 | L104: 0.665 | M104: 0.667 | N104: 0.666 | O104: 0.67
B105: Smartphones penetration, as % of all registered mobile phones on MTS network* | C105: 0.761 | D105: 0.771 | E105: 0.778 | F105: 0.781 | G105: 0.781 | H105: 0.791 | I105: 0.799 | J105: 0.801 | K105: 0.802 | L105: 0.802 | M105: 0.814 | N105: 0.817 | O105: 0.825
B107: Client relationship
B108: My MTS, MAU, thou | C108: 21916.17 | D108: 22287 | E108: 23308.705 | F108: 23808.193 | G108: 23808.193 | H108: 24642 | I108: 24460 | J108: 25212 | K108: 25102 | L108: 25102 | M108: 26179 | N108: 25806 | O108: 26278
B109: MTS Cashback registered users, thou | C109: 5691.194 | D109: 6132 | E109: 8405.885 | F109: 9 376 | G109: 9 376 | H109: 11100 | I109: 12511 | J109: 14074 | K109: 16128 | L109: 16128 | M109: 22327 | N109: 26411 | O109: 32537
B110: Music services users (incl. partners), thou | C110: 1005.251 | D110: 975 | E110: 924 | F110: 1 054 | G110: 1 054 | H110: 912 | I110: 1263 | J110: 973 | K110: 920 | L110: 920 | M110: 785 | N110: 928 | O110: 958
B111: Number of tickets sold at MTS, thou | C111: 1324 | D111: -53 | E111: 296 | F111: 504 | G111: 2071 | H111: 947 | I111: 613 | J111: 650 | K111: 1366 | L111: 3576 | M111: 1335 | N111: 1098 | O111: 1120
B112: Retail stores | C112: 5510 | D112: 5281 | E112: 5188 | F112: 5244 | G112: 5244 | H112: 5334 | I112: 5338 | J112: 5469 | K112: 5636 | L112: 5636 | M112: 5562 | N112: 5420 | O112: 5363
B113: E-commerce
B114: Online sales, mln | C114: 2557 | D114: 3558 | E114: 3730 | F114: 6313 | G114: 16158 | H114: 5035 | I114: 4186 | J114: 4248 | K114: 5891 | L114: 19360 | M114: 3158 | N114: 1359 | O114: 1655
B115: Unless stated otherwise, client numbers and app users are calculated based on any account activity over the last 3 months * MTS defines a smartphone as a handset with one of the following operating systems: iOS, Android, Windows, Blackberry OS, Symbian, Linux or Bada. ** Adjusted OIBDA for 4Q 2018 and 2018 doesn't include a loss from impairment of non-current assets of RUB 172 mln. Adjusted OIBDA for 1Q 2020, 2Q2020, 4Q2020 and 2020 doesn't include a loss from impairment of non-current assets of RUB 342 mln, RUB 938 mln, RUB 808 mln and RUB 2 088 mln, respectively. Adjusted OIBDA for 1Q 2022, 2Q 2022 doesn't include a loss from impairment of non-current assets of RUB 207 mln, RUB 282 mln, respectively *** Revenue calculated on a standalone basis and adjusted for one-off intragroup transaction for 1Q 2020, 2Q 2020, 3Q 2020 and for 2020 in the amount of RUB 1 489 mln, RUB 1 190 mln, RUB 1 614 mln and RUB 4 293 mln, respectively

Sheet Armenia
B2: Country highlights:* | C2: 2020 | H2: 2021 | M2: 2022
B3: Armenia | C3: Q1 | D3: Q2 | E3: Q3 | F3: Q4 | G3: Full year | H3: Q1 | I3: Q2 | J3: Q3 | K3: Q4 | L3: Full year | M3: Q1 | N3: Q2 | O3: Q3
B5: Amounts in millions of RUB, unless stated
B6: Revenue | C6: 1768 | D6: 1763 | E6: 2028 | F6: 1604 | G6: 7163 | H6: 1624 | I6: 1733 | J6: 1930 | K6: 1883 | L6: 7170 | M6: 2081 | N6: 1841 | O6: 1934
B7: Operating profit | C7: 411 | D7: 407 | E7: 575 | F7: 304 | G7: 1697 | H7: 271 | I7: 463 | J7: 390 | K7: 346 | L7: 1470 | M7: 528 | N7: 528 | O7: 606
B8: - operating margin, % | C8: 0.233 | D8: 0.231 | E8: 0.283 | F8: 0.19 | G8: 0.237 | H8: 0.167 | I8: 0.267 | J8: 0.202 | K8: 0.184 | L8: 0.205 | M8: 0.254 | N8: 0.287 | O8: 0.313
B9: Depreciation and amortization | C9: 433 | D9: 483 | E9: 517 | F9: 573 | G9: 2006 | H9: 568 | I9: 517 | J9: 632 | K9: 594 | L9: 2311 | M9: 595 | N9: 462 | O9: 470
B10: - as % of revenue | C10: 0.245 | D10: 0.274 | E10: 0.255 | F10: 0.357 | G10: 0.28 | H10: 0.35 | I10: 0.298 | J10: 0.328 | K10: 0.316 | L10: 0.322 | M10: 0.286 | N10: 0.251 | O10: 0.243
B11: OIBDA | C11: 844 | D11: 890 | E11: 1092 | F11: 877 | G11: 3703 | H11: 839 | I11: 980 | J11: 1022 | K11: 940 | L11: 3781 | M11: 1123 | N11: 990 | O11: 1076
B12: OIBDA margin, % | C12: 0.477 | D12: 0.505 | E12: 0.538 | F12: 0.547 | G12: 0.517 | H12: 0.517 | I12: 0.566 | J12: 0.53 | K12: 0.499 | L12: 0.527 | M12: 0.54 | N12: 0.538 | O12: 0.557
B13: Net profit | C13: 578 | D13: 143 | E13: 532 | F13: 599 | G13: 1852 | H13: 271 | I13: -43 | J13: 178 | K13: 87 | L13: 493 | M13: 36 | N13: -11 | O13: 483
B14: - margin, % | C14: 0.327 | D14: 0.081 | E14: 0.262 | F14: 0.374 | G14: 0.259 | H14: 0.167 | I14: n/a | J14: 0.092 | K14: 0.046 | L14: 0.069 | M14: 0.017 | N14: n/a | O14: 0.25
B15: CAPEX | C15: 276 | D15: 416 | E15: 366 | F15: 807 | G15: 1865 | H15: 195 | I15: 259 | J15: 368 | K15: 874 | L15: 1696 | M15: 107 | N15: 236 | O15: 305
B16: CAPEX excluding purchases of 4G licenses | C16: 276 | D16: 416 | E16: 366 | F16: 807 | G16: 1865 | H16: 195 | I16: 259 | J16: 368 | K16: 874 | L16: 1696 | M16: 107 | N16: 236 | O16: 305
B17: - as % of revenue | C17: 0.156 | D17: 0.236 | E17: 0.181 | F17: 0.503 | G17: 0.26 | H17: 0.12 | I17: 0.15 | J17: 0.191 | K17: 0.464 | L17: 0.237 | M17: 0.052 | N17: 0.128 | O17: 0.158
B19: Operating highlights
B20: Mobile business
B21: MTS subscribers, mln | C21: 2162.8 | D21: 2057.5 | E21: 2106.3 | F21: 2146.9 | G21: 2146.9 | H21: 2168.2 | I21: 2184.7 | J21: 2226.4 | K21: 2231.8 | L21: 2231.8 | M21: 2222.9 | N21: 2257.2 | O21: 2306.4
B22: Total traffic, mln minutes | C22: 3835 | D22: 4182 | E22: 4485 | F22: 4412 | G22: 16914 | H22: 4155 | I22: 4518 | J22: 4498 | K22: 4503 | L22: 17674 | M22: 4118 | N22: 4433 | O22: 4471
B24: AMD/RUB | C24: ='Ave Forex Rates'!N7 -> 7.31 | D24: ='Ave Forex Rates'!O7 -> 6.7 | E24: ='Ave Forex Rates'!P7 -> 6.61 | F24: ='Ave Forex Rates'!Q7 -> 6.61 | G24: ='Ave Forex Rates'!R7 -> 6.81 | H24: ='Ave Forex Rates'!S7 -> 7.05 | I24: ='Ave Forex Rates'!T7 -> 7.01 | J24: ='Ave Forex Rates'!U7 -> 6.67 | K24: ='Ave Forex Rates'!V7 -> 6.67 | L24: ='Ave Forex Rates'!W7 -> 6.84 | M24: ='Ave Forex Rates'!X7 -> 6.67 | N24: ='Ave Forex Rates'!Y7 -> 6.85 | O24: ='Ave Forex Rates'!Z7 -> 6.89
B26: Amounts in millions of AMD, unless stated
B27: Revenue | C27: 12892 | D27: 11817 | E27: 13384 | F27: 10431 | G27: 48524 | H27: 11452 | I27: 12149 | J27: 12882 | K27: 12473 | L27: 48956 | M27: 11835 | N27: 12555 | O27: 13317
B28: Operating profit | C28: 2988 | D28: 2725 | E28: 3789 | F28: 1876 | G28: 11378 | H28: 1913 | I28: 3251 | J28: 2600 | K28: 2295 | L28: 10059 | M28: 2970 | N28: 3646 | O28: 4179
B29: - operating margin, % | C29: 0.232 | D29: 0.231 | E29: 0.283 | F29: 0.18 | G29: 0.234 | H29: 0.167 | I29: 0.268 | J29: 0.202 | K29: 0.184 | L29: 0.205 | M29: 0.251 | N29: 0.29 | O29: 0.314
B30: Depreciation and amortization | C30: 3154 | D30: 3240 | E30: 3412 | F30: 3793 | G30: 13599 | H30: 4004 | I30: 3622 | J30: 4221 | K30: 3936 | L30: 15783 | M30: 3416 | N30: 3123 | O30: 3236
B31: - as % of revenue | C31: 0.245 | D31: 0.274 | E31: 0.255 | F31: 0.364 | G31: 0.28 | H31: 0.35 | I31: 0.298 | J31: 0.328 | K31: 0.316 | L31: 0.322 | M31: 0.289 | N31: 0.249 | O31: 0.243
B32: OIBDA | C32: 6141 | D32: 5966 | E32: 7201 | F32: 5669 | G32: 24977 | H32: 5917 | I32: 6873 | J32: 6821 | K32: 6231 | L32: 25842 | M32: 6386 | N32: 6769 | O32: 7415
B33: OIBDA margin, % | C33: 0.476 | D33: 0.505 | E33: 0.538 | F33: 0.543 | G33: 0.515 | H33: 0.517 | I33: 0.566 | J33: 0.53 | K33: 0.5 | L33: 0.528 | M33: 0.54 | N33: 0.539 | O33: 0.557
B34: Net profit | C34: 4074 | D34: 995 | E34: 3510 | F34: 3913 | G34: 12492 | H34: 1912 | I34: -305 | J34: 1188 | K34: 578 | L34: 3373 | M34: 550 | N34: -199 | O34: 3338
B35: - margin, % | C35: 0.316 | D35: 0.084 | E35: 0.262 | F35: 0.375 | G35: 0.257 | H35: 0.167 | I35: n/a | J35: 0.092 | K35: 0.046 | L35: 0.069 | M35: 0.046 | N35: n/a | O35: 0.251
B36: CAPEX | C36: 1870 | D36: 2789 | E36: 2457 | F36: 5474 | G36: 12590 | H36: 1371 | I36: 1820 | J36: 2451 | K36: 5778 | L36: 11420 | M36: 612 | N36: 1557 | O36: 2100
B37: CAPEX excluding purchases of 4G licenses | C37: 1870 | D37: 2789 | E37: 2457 | F37: 5474 | G37: 12590 | H37: 1371 | I37: 1820 | J37: 2451 | K37: 5778 | L37: 11420 | M37: 612 | N37: 1557 | O37: 2100
B38: - as % of revenue | C38: 0.145 | D38: 0.236 | E38: 0.184 | F38: 0.525 | G38: 0.259 | H38: 0.12 | I38: 0.15 | J38: 0.19 | K38: 0.463 | L38: 0.233 | M38: 0.052 | N38: 0.124 | O38: 0.158
B40: *Due to the rounding and translation practices, Russian rubles and functional currency margins, as well as other non-IFRS financial measures, may differ.

Sheet Turkmenistan
B2: Country highlights:* | C2: 2020 | H2: 2021 | M2: 2022
B3: Turkmenistan | C3: Q1 | D3: Q2 | E3: Q3 | F3: Q4 | G3: Full year | H3: Q1 | I3: Q2 | J3: Q3 | K3: Q4 | L3: Full year | M3: Q1 | N3: Q2 | O3: Q3
B5: Amounts in millions of RUB, unless stated
B6: Revenue | C6: 0 | D6: 0 | E6: 0 | F6: 0 | G6: 0 | H6: 0 | I6: 0 | J6: 0 | K6: 0 | L6: 0 | M6: 0 | N6: 0 | O6: 0
B7: Operating profit | C7: 9 | D7: -4 | E7: 3 | F7: 60 | G7: 68 | H7: -17 | I7: -14 | J7: -10 | K7: -8 | L7: -49 | M7: 22 | N7: 56 | O7: -6
B8: - operating margin, % | C8: n/a | D8: n/a | E8: n/a | F8: n/a | G8: n/a | H8: n/a | I8: n/a | J8: n/a | K8: n/a | L8: n/a | M8: n/a | N8: n/a | O8: n/a
B9: Depreciation and amortization | C9: 0 | D9: 0 | E9: 0 | F9: 0 | G9: 0 | H9: 0 | I9: 0 | J9: 0 | K9: 0 | L9: 0 | M9: 0 | N9: 0 | O9: 0
B10: - as % of revenue | C10: n/a | D10: n/a | E10: n/a | F10: n/a | G10: n/a | H10: n/a | I10: n/a | J10: n/a | K10: n/a | L10: n/a | M10: n/a | N10: n/a | O10: n/a
B11: Adjusted OIBDA** | C11: 9 | D11: -4 | E11: 3 | F11: 60 | G11: 68 | H11: -17 | I11: -14 | J11: -10 | K11: -8 | L11: -49 | M11: 22 | N11: 56 | O11: -6
B12: Adjusted OIBDA margin, % | C12: n/a | D12: n/a | E12: n/a | F12: n/a | G12: n/a | H12: n/a | I12: n/a | J12: n/a | K12: n/a | L12: n/a | M12: n/a | N12: n/a | O12: n/a
B13: Net profit | C13: 9 | D13: -4 | E13: 3 | F13: 60 | G13: 68 | H13: -17 | I13: -6 | J13: -8 | K13: -9 | L13: -40 | M13: 22 | N13: 56 | O13: -6
B14: - margin, % | C14: n/a | D14: n/a | E14: n/a | F14: n/a | G14: n/a | H14: n/a | I14: n/a | J14: n/a | K14: n/a | L14: n/a | M14: n/a | N14: n/a | O14: n/a
B15: CAPEX | C15: 0 | D15: 0 | E15: 0 | F15: 0 | G15: 0 | H15: 0 | I15: 0 | J15: 0 | K15: 0 | L15: 0 | M15: 73 | N15: 0 | O15: 0
B16: - as % of revenue | C16: n/a | D16: n/a | E16: n/a | F16: n/a | G16: n/a | H16: n/a | I16: n/a | J16: n/a | K16: n/a | L16: n/a | M16: n/a | N16: n/a | O16: n/a
B18: Operating highlights
B19: Mobile business
B20: MTS subscribers, thous | C20: n/a | D20: n/a | E20: n/a | F20: n/a | G20: n/a | H20: n/a | I20: n/a | J20: n/a | K20: n/a | L20: n/a | M20: n/a | N20: n/a | O20: n/a
B21: Total traffic, mln minutes | C21: n/a | D21: n/a | E21: n/a | F21: n/a | G21: n/a | H21: n/a | I21: n/a | J21: n/a | K21: n/a | L21: n/a | M21: n/a | N21: n/a | O21: n/a
B23: TMT/RUB | C23: ='Ave Forex Rates'!N6 -> 0.053 | D23: ='Ave Forex Rates'!O6 -> 0.048 | E23: ='Ave Forex Rates'!P6 -> 0.048 | F23: ='Ave Forex Rates'!Q6 -> 0.046 | G23: ='Ave Forex Rates'!R6 -> 0.049 | H23: ='Ave Forex Rates'!S6 -> 0.047 | I23: ='Ave Forex Rates'!T6 -> 0.047 | J23: ='Ave Forex Rates'!U6 -> 0.047 | K23: ='Ave Forex Rates'!V6 -> 0.048 | L23: ='Ave Forex Rates'!W6 -> 0.048 | M23: ='Ave Forex Rates'!X6 -> 0.042 | N23: ='Ave Forex Rates'!Y6 -> 0.054 | O23: ='Ave Forex Rates'!Z6 -> 0.059
B25: Amounts in millions of TMT, unless stated
B26: Revenue | C26: 0 | D26: 0 | E26: 0 | F26: 0 | G26: 0 | H26: 0 | I26: 0 | J26: 0 | K26: 0 | L26: 0 | M26: 0 | N26: 0 | O26: 0
B27: Operating profit | C27: 0.5 | D27: -0.2 | E27: 0.2 | F27: 2.7 | G27: 3.2 | H27: -0.8 | I27: -0.7 | J27: -0.4 | K27: -0.4 | L27: -2.3 | M27: 0.7 | N27: 2.5 | O27: -0.4
B28: - operating margin, % | C28: n/a | D28: n/a | E28: n/a | F28: n/a | G28: n/a | H28: n/a | I28: n/a | J28: n/a | K28: n/a | L28: n/a | M28: n/a | N28: n/a | O28: n/a
B29: Depreciation and amortization | C29: 0 | D29: 0 | E29: 0 | F29: 0 | G29: 0 | H29: 0 | I29: 0 | J29: 0 | K29: 0 | L29: 0 | M29: 0 | N29: 0 | O29: 0
B30: - as % of revenue | C30: n/a | D30: n/a | E30: n/a | F30: n/a | G30: n/a | H30: n/a | I30: n/a | J30: n/a | K30: n/a | L30: n/a | M30: n/a | N30: n/a | O30: n/a
B31: Adjusted OIBDA** | C31: 0.5 | D31: -0.2 | E31: 0.2 | F31: 2.7 | G31: 3.2 | H31: -0.8 | I31: -0.7 | J31: -0.4 | K31: -0.4 | L31: -2.3 | M31: 0.7 | N31: 2.5 | O31: -0.4
B32: Adjusted OIBDA margin, % | C32: n/a | D32: n/a | E32: n/a | F32: n/a | G32: n/a | H32: n/a | I32: n/a | J32: n/a | K32: n/a | L32: n/a | M32: n/a | N32: n/a | O32: n/a
B33: Net profit | C33: 0.5 | D33: -0.2 | E33: 0.2 | F33: 2.7 | G33: 3.2 | H33: -0.8 | I33: -0.3 | J33: -0.4 | K33: -0.4 | L33: -1.9 | M33: 0.7 | N33: 2.5 | O33: -0.4
B34: - margin % | C34: n/a | D34: n/a | E34: n/a | F34: n/a | G34: n/a | H34: n/a | I34: n/a | J34: n/a | K34: n/a | L34: n/a | M34: n/a | N34: n/a | O34: n/a
B35: CAPEX | C35: 0 | D35: 0 | E35: 0 | F35: 0 | G35: 0 | H35: 0 | I35: 0 | J35: 0 | K35: 0 | L35: 0 | M35: 3.2 | N35: 0 | O35: 0
B36: - as % of revenue | C36: n/a | D36: n/a | E36: n/a | F36: n/a | G36: n/a | H36: n/a | I36: n/a | J36: n/a | K36: n/a | L36: n/a | M36: n/a | N36: n/a | O36: n/a
B39: *Due to the rounding and translation practices, Russian rubles and functional currency margins, as well as other non-IFRS financial measures, may differ.

Sheet Belarus
B2: Country highlights:* | C2: 2020 | H2: 2021 | M2: 2022
B3: Belarus** | C3: Q1 | D3: Q2 | E3: Q3 | F3: Q4 | G3: Full year | H3: Q1 | I3: Q2 | J3: Q3 | K3: Q4 | L3: Full year | M3: Q1 | N3: Q2 | O3: Q3
B5: Amounts in millions of RUB, unless stated
B6: Revenue | C6: 8329 | D6: 8542 | E6: 9356 | F6: 9894 | G6: 36121 | H6: 8999 | I6: 9362 | J6: 10292 | K6: 10730 | L6: 39383 | M6: 10706 | N6: 8369 | O6: 8578
B7: Operating profit | C7: 3156 | D7: 3328 | E7: 3663 | F7: 3626 | G7: 13773 | H7: 3586 | I7: 3622 | J7: 3812 | K7: 3736 | L7: 14756 | M7: 4163 | N7: 3399 | O7: 3359
B8: - operating margin, % | C8: 0.379 | D8: 0.39 | E8: 0.391 | F8: 0.366 | G8: 0.381 | H8: 0.398 | I8: 0.387 | J8: 0.37 | K8: 0.348 | L8: 0.375 | M8: 0.389 | N8: 0.406 | O8: 0.392
B9: Depreciation and amortization | C9: 1319 | D9: 1319 | E9: 1174 | F9: 1341 | G9: 5153 | H9: 1280 | I9: 1322 | J9: 1422 | K9: 1349 | L9: 5373 | M9: 1484 | N9: 1253 | O9: 1159
B10: - as % of revenue | C10: 0.158 | D10: 0.154 | E10: 0.125 | F10: 0.136 | G10: 0.143 | H10: 0.142 | I10: 0.141 | J10: 0.138 | K10: 0.126 | L10: 0.136 | M10: 0.139 | N10: 0.15 | O10: 0.135
B11: OIBDA | C11: 4475 | D11: 4648 | E11: 4836 | F11: 4967 | G11: 18926 | H11: 4866 | I11: 4944 | J11: 5233 | K11: 5085 | L11: 20128 | M11: 5647 | N11: 4652 | O11: 4517
B12: OIBDA margin, % | C12: 0.537 | D12: 0.544 | E12: 0.517 | F12: 0.502 | G12: 0.524 | H12: 0.541 | I12: 0.528 | J12: 0.508 | K12: 0.474 | L12: 0.511 | M12: 0.528 | N12: 0.556 | O12: 0.527
B13: Net profit | C13: 2201 | D13: 2362 | E13: 2738 | F13: 2966 | G13: 10267 | H13: 2452 | I13: 2475 | J13: 2765 | K13: 2687 | L13: 10379 | M13: 2738 | N13: 1971 | O13: 2700
B14: - margin, % | C14: 0.264 | D14: 0.276 | E14: 0.293 | F14: 0.3 | G14: 0.284 | H14: 0.273 | I14: 0.264 | J14: 0.269 | K14: 0.25 | L14: 0.264 | M14: 0.256 | N14: 0.236 | O14: 0.315
B15: CAPEX | C15: 290 | D15: 315 | E15: 603 | F15: 1180 | G15: 2388 | H15: 222 | I15: 416 | J15: 906 | K15: 876 | L15: 2420 | M15: 389 | N15: 156 | O15: 410
B16: CAPEX excluding purchases of 3G license | C16: 290 | D16: 315 | E16: 603 | F16: 1180 | G16: 2388 | H16: 222 | I16: 416 | J16: 906 | K16: 876 | L16: 2420 | M16: 389 | N16: 156 | O16: 410
B17: - as % of revenue | C17: 0.035 | D17: 0.037 | E17: 0.064 | F17: 0.119 | G17: 0.066 | H17: 0.025 | I17: 0.044 | J17: 0.088 | K17: 0.082 | L17: 0.061 | M17: 0.036 | N17: 0.019 | O17: 0.048
B19: Operating highlights
B20: Mobile business
B21: MTS subscribers, mln | C21: 5.7 | D21: 5.6 | E21: 5.7 | F21: 5.7 | G21: 5.7 | H21: 5.7 | I21: 5.7 | J21: 5.7 | K21: 5.7 | L21: 5.7 | M21: 5.7 | N21: 5.7 | O21: 5.7
B22: Total traffic, bln minutes | C22: 9.25 | D22: 10.2 | E22: 10.2 | F22: 10.2 | G22: 39.81 | H22: 9.7 | I22: 10.1 | J22: 10.2 | K22: 10.2 | L22: 40.2 | M22: 9.6 | N22: 9.6 | O22: 9.5
B24: BYN/RUB (BYR/RUB) | C24: ='Ave Forex Rates'!N8 -> 0.03 | D24: ='Ave Forex Rates'!O8 -> 0.03 | E24: ='Ave Forex Rates'!P8 -> 0.03 | F24: ='Ave Forex Rates'!Q8 -> 0.03 | G24: ='Ave Forex Rates'!R8 -> 0.03 | H24: ='Ave Forex Rates'!S8 -> 0.03 | I24: ='Ave Forex Rates'!T8 -> 0.03 | J24: ='Ave Forex Rates'!U8 -> 0.03 | K24: ='Ave Forex Rates'!V8 -> 0.03 | L24: ='Ave Forex Rates'!W8 -> 0.03 | M24: ='Ave Forex Rates'!X8 -> 0.03 | N24: ='Ave Forex Rates'!Y8 -> 0.04 | O24: ='Ave Forex Rates'!Z8 -> 0.04
B26: Amounts in millions of BYN, unless stated
B27: Revenue | C27: 281.2 | D27: 287.73 | E27: 318.71 | F27: 334.36 | G27: 1222 | H27: 314 | I27: 322 | J27: 353 | K27: 368 | L27: 1357 | M27: 351 | N27: 334 | O27: 372
B28: Operating profit | C28: 106.67 | D28: 112.04 | E28: 124.86 | F28: 122.28 | G28: 465.85 | H28: 125 | I28: 125 | J28: 130 | K28: 128 | L28: 508 | M28: 136 | N28: 135 | O28: 146
B29: - operating margin, % | C29: 0.379 | D29: 0.389 | E29: 0.392 | F29: 0.366 | G29: 0.381 | H29: 0.398 | I29: 0.387 | J29: 0.37 | K29: 0.348 | L29: 0.375 | M29: 0.388 | N29: 0.404 | O29: 0.391
B30: Depreciation and amortization | C30: 44.55 | D30: 44.39 | E30: 39.91 | F30: 45.27 | G30: 174.12 | H30: 45 | I30: 45 | J30: 49 | K30: 46 | L30: 185 | M30: 49 | N30: 49 | O30: 51
B31: - as % of revenue | C31: 0.158 | D31: 0.154 | E31: 0.125 | F31: 0.135 | G31: 0.142 | H31: 0.142 | I31: 0.141 | J31: 0.138 | K31: 0.126 | L31: 0.136 | M31: 0.139 | N31: 0.149 | O31: 0.135
B32: OIBDA | C32: 151.22 | D32: 156.42 | E32: 164.78 | F32: 167.56 | G32: 639.98 | H32: 170 | I32: 170 | J32: 179 | K32: 175 | L32: 694 | M32: 185 | N32: 185 | O32: 195
B33: OIBDA margin, % | C33: 0.538 | D33: 0.544 | E33: 0.517 | F33: 0.501 | G33: 0.524 | H33: 0.541 | I33: 0.528 | J33: 0.508 | K33: 0.474 | L33: 0.511 | M33: 0.527 | N33: 0.553 | O33: 0.526
B34: Net profit | C34: 74.46 | D34: 79.45 | E34: 93.39 | F34: 100.26 | G34: 347.56 | H34: 86 | I34: 85 | J34: 94 | K34: 93 | L34: 358 | M34: 90 | N34: 77 | O34: 118
B35: - margin % | C35: 0.265 | D35: 0.276 | E35: 0.293 | F35: 0.3 | G35: 0.284 | H35: 0.272 | I35: 0.264 | J35: 0.269 | K35: 0.25 | L35: 0.264 | M35: 0.257 | N35: 0.231 | O35: 0.315
B36: CAPEX | C36: 10 | D36: 11 | E36: 21 | F36: 40 | G36: 82 | H36: 8 | I36: 14 | J36: 31 | K36: 30 | L36: 83 | M36: 12 | N36: 6 | O36: 18
B37: CAPEX excluding purchases of 3G license | C37: 10 | D37: 11 | E37: 21 | F37: 40 | G37: 82 | H37: 8 | I37: 14 | J37: 31 | K37: 30 | L37: 83 | M37: 12 | N37: 6 | O37: 18
B38: - as % of revenue | C38: 0.035 | D38: 0.037 | E38: 0.064 | F38: 0.121 | G38: 0.067 | H38: 0.025 | I38: 0.044 | J38: 0.088 | K38: 0.082 | L38: 0.061 | M38: 0.035 | N38: 0.019 | O38: 0.047
B41: *Due to the rounding and translation practices, Russian rubles and functional currency margins, as well as other non-IFRS financial measures, may differ.
B43: **MTS owns a 49% stake in Mobile TeleSystems LLC, a mobile operator in Belarus, which is not consolidated

Sheet Group reconciliations
C2: 2020 | G2: 2021 | K2: 2022
B3: MTS Group | C3: Q1 | D3: Q2 | E3: Q3 | F3: Q4 | G3: Q1 | H3: Q2 | I3: Q3 | J3: Q4 | K3: Q1 | L3: Q2 | M3: Q3
B5: Net debt, amounts in millions of RUB, unless stated
B6: Current portion of LT debt | C6: 35338 | D6: 12122 | E6: 24032 | F6: 34215 | G6: 37311 | H6: 52000 | I6: 65033 | J6: 111928 | K6: 132539 | L6: 139923 | M6: 148779
B7: LT debt | C7: 388028 | D7: 396749 | E7: 391607 | F7: 395296 | G7: 385120 | H7: 369533 | I7: 384632 | J7: 350395 | K7: 365232 | L7: 357502 | M7: 367268
B8: Total debt | C8: 423366 | D8: 408871 | E8: 415639 | F8: 429511 | G8: 422431 | H8: 421533 | I8: 449665 | J8: 462323 | K8: 497771 | L8: 497425 | M8: 516047
B9: Less:
B10: Cash and cash equivalents | C10: 101163 | D10: 98253 | E10: 82649 | F10: 85405 | G10: 57267 | H10: 42326 | I10: 21338 | J10: 40590 | K10: 34958 | L10: 57850 | M10: 81094
B11: ST investments | C11: 27886 | D11: 25994 | E11: 26547 | F11: 23434 | G11: 25212 | H11: 27727 | I11: 28748 | J11: 28972 | K11: 27251 | L11: 20607 | M11: 20162
B12: LT deposits | C12: 0 | D12: 0 | E12: 0 | F12: 0 | G12: 0 | H12: 0 | I12: 0 | J12: 0 | K12: 0 | L12: 0 | M12: 0
B13: SWAPs | C13: 4882 | D13: 0 | E13: 0 | F13: 0 | G13: 0 | H13: 0 | I13: 0 | J13: 0 | K13: 0 | L13: 0 | M13: 0
B14: Hedge | C14: 4616 | D14: 2100 | E14: 4069 | F14: 3054 | G14: 3692 | H14: 2950 | I14: 2908 | J14: 3291 | K14: 4526 | L14: 0 | M14: 0
B15: Net debt | C15: 284819 | D15: 282524 | E15: 302374 | F15: 317618 | G15: 336260 | H15: 348530 | I15: 396671 | J15: 389470 | K15: 431036 | L15: 418968 | M15: 414791
B18: Financial leverage ratios
B19: Shareholders' equity, RUB mln | C19: 57559 | D19: 30778 | E19: 30276 | F19: 32690 | G19: 49147 | H19: ='Statement of financial position'!H39 -> 7957 | I19: ='Statement of financial position'!I39 -> 2960 | J19: ='Statement of financial position'!J39 -> 14604 | K19: ='Statement of financial position'!K39 -> 21853 | L19: ='Statement of financial position'!L39 -> -29956 | M19: ='Statement of financial position'!M39 -> -15054
B20: Total assets, RUB mln | C20: 924201 | D20: 902444 | E20: 904325 | F20: 919203 | G20: 909206 | H20: ='Statement of financial position'!H34 -> 941589 | I20: ='Statement of financial position'!I34 -> 954722 | J20: ='Statement of financial position'!J34 -> 1015818 | K20: ='Statement of financial position'!K34 -> 1039426 | L20: ='Statement of financial position'!L34 -> 1013458 | M20: ='Statement of financial position'!M34 -> 1057122
B21: LTM adjusted OIBDA, RUB mln | C21: 211137 | D21: 211435 | E21: 213287 | F21: 215218 | G21: 218687 | H21: ='Statement of profit or loss'!H58+'Statement of profit or loss'!I58+'Statement of profit or loss'!F58+'Statement of profit or loss'!E58 -> 223423 | I21: ='Statement of profit or loss'!J58+'Statement of profit or loss'!I58+'Statement of profit or loss'!H58+'Statement of profit or loss'!F58 -> 225953 | J21: ='Statement of profit or loss'!L58 -> 228955 | K21: ='Statement of profit or loss'!M58+'Statement of profit or loss'!K58+'Statement of profit or loss'!J58+'Statement of profit or loss'!I58 -> 230131 | L21: ='Statement of profit or loss'!N58+'Statement of profit or loss'!M58+'Statement of profit or loss'!K58+'Statement of profit or loss'!J58 -> 224877 | M21: ='Statement of profit or loss'!K58+'Statement of profit or loss'!M58+'Statement of profit or loss'!N58+'Statement of profit or loss'!O58 -> 224085
B22: Net debt/assets | C22: =ROUND(C15/C20, 1) -> 0.3 | D22: 0.3 | E22: 0.3 | F22: 0.3 | G22: 0.4 | H22: 0.4 | I22: =ROUND(I15/I20, 1) -> 0.4 | J22: =ROUND(J15/J20, 1) -> 0.4 | K22: 0.4 | L22: =ROUND(L15/L20, 1) -> 0.4 | M22: 0.4
B23: Net debt/equity | C23: =ROUND(C15/C19, 1) -> 4.9 | D23: 9.2 | E23: 10 | F23: 9.7 | G23: 6.8 | H23: 43.8 | I23: =ROUND(I15/I19, 1) -> 134 | J23: =ROUND(J15/J19, 1) -> 26.7 | K23: =ROUND(K15/K19, 1) -> 19.7 | L23: =ROUND(L15/L19, 1) -> -14 | M23: =ROUND(M15/M19, 1) -> -27.6
B24: Net debt/LTM adjusted OIBDA | C24: =ROUND(C15/C21, 1) -> 1.3 | D24: 1.3 | E24: 1.4 | F24: 1.5 | G24: 1.5 | H24: 1.6 | I24: =ROUND(I15/I21, 1) -> 1.8 | J24: =ROUND(J15/J21, 1) -> 1.7 | K24: 1.9 | L24: =ROUND(L15/L21, 1) -> 1.9 | M24: =ROUND(M15/M21, 1) -> 1.9
B27: Debt composition
B28: By type, %
B29: Credit facilities | C29: 0.5234414155 | D29: 0.4945831849 | E29: 0.4922792294 | F29: 0.5148 | G29: 0.52 | H29: 0.522 | I29: 0.574 | J29: 0.584 | K29: 0.6251608544 | L29: 0.614 | M29: 0.586
B30: Bonds | C30: 0.4765585845 | D30: 0.5054168151 | E30: 0.5077207706 | F30: 0.4852 | G30: 0.48 | H30: 0.478 | I30: 0.426 | J30: 0.416 | K30: 0.3748391456 | L30: 0.386 | M30: 0.414
B31: Syndicated loan
B32: By currency, %
B33: RUB | C33: 0.976 | D33: 0.975 | E33: 0.967 | F33: 0.974 | G33: 0.973 | H33: 0.974 | I33: 0.975 | J33: 0.975 | K33: 0.974441944 | L33: 0.955 | M33: 0.952
B34: USD | C34: 0.024 | D34: 0.025 | E34: 0.033 | F34: 0.026 | G34: 0.027 | H34: 0.026 | I34: 0.025 | J34: 0.025 | K34: 0.02512676744 | L34: 0.045 | M34: 0.048
B35: EUR | C35: 0 | D35: 0 | E35: 0 | F35: 0 | G35: 0 | H35: 0 | I35: 0 | J35: 0 | K35: 0.0004312885274 | L35: 0 | M35: 0
B38: Free cash flow, amounts in millions of RUB
B39: Net cash provided by operating activities | C39: ='Statement of cash flows'!C40 -> 39504 | D39: ='Statement of cash flows'!D40 -> 64567 | E39: ='Statement of cash flows'!E40 -> 109127 | F39: ='Statement of cash flows'!H40 -> 155507 | G39: ='Statement of cash flows'!I40 -> 14318 | H39: ='Statement of cash flows'!J40 -> 48230 | I39: ='Statement of cash flows'!K40 -> 87793 | J39: ='Statement of cash flows'!L40 -> 142846 | K39: ='Statement of cash flows'!M40 -> 9015 | L39: ='Statement of cash flows'!P40 -> 53994 | M39: ='Statement of cash flows'!S40 -> 125468
B40: Less:
B41: Purchases of property, plant and equipment | C41: ='Statement of cash flows'!C46 -> -14361 | D41: ='Statement of cash flows'!D46 -> -28053 | E41: ='Statement of cash flows'!E46 -> -44588 | F41: ='Statement of cash flows'!H46 -> -66256 | G41: ='Statement of cash flows'!I46 -> -18240 | H41: ='Statement of cash flows'!J46 -> -35698 | I41: ='Statement of cash flows'!K46 -> -57137 | J41: ='Statement of cash flows'!L46 -> -73081 | K41: ='Statement of cash flows'!M46 -> -25997 | L41: ='Statement of cash flows'!P46 -> -40599 | M41: ='Statement of cash flows'!S46 -> -50161
B42: Purchases of other intangible assets, excluding purchases of 3G, 4G license in Ukraine and Russia and cost to obtain contracts | C42: ='Statement of cash flows'!C47 -> -5844 | D42: ='Statement of cash flows'!D47 -> -12757 | E42: ='Statement of cash flows'!E47 -> -19594 | F42: ='Statement of cash flows'!H47 -> -31153 | G42: ='Statement of cash flows'!I47 -> -11109 | H42: ='Statement of cash flows'!J47 -> -19450 | I42: ='Statement of cash flows'!K47 -> -31082 | J42: ='Statement of cash flows'!L47 -> -38602 | K42: ='Statement of cash flows'!M47 -> -11338 | L42: ='Statement of cash flows'!P47 -> -18811 | M42: ='Statement of cash flows'!S47 -> -25606
B43: Cost to obtain and fulfill contracts | C43: ='Statement of cash flows'!C48 -> -1188 | D43: ='Statement of cash flows'!D48 -> -2337 | E43: ='Statement of cash flows'!E48 -> -3745 | F43: ='Statement of cash flows'!H48 -> -5442 | G43: ='Statement of cash flows'!I48 -> -1349 | H43: ='Statement of cash flows'!J48 -> -1823 | I43: ='Statement of cash flows'!K48 -> -2741 | J43: ='Statement of cash flows'!L48 -> -4218 | K43: ='Statement of cash flows'!M48 -> -1126 | L43: ='Statement of cash flows'!P48 -> -2109 | M43: ='Statement of cash flows'!S48 -> -3262
B44: Purchase of Avantage | C44: ='Statement of cash flows'!C50 -> 0 | D44: ='Statement of cash flows'!D50 -> -196 | E44: ='Statement of cash flows'!E50 -> -196 | F44: ='Statement of cash flows'!H50 -> -429 | G44: ='Statement of cash flows'!I50 -> 0 | H44: ='Statement of cash flows'!J50 -> 0 | I44: ='Statement of cash flows'!K50 -> 0 | J44: ='Statement of cash flows'!L50 -> 0 | K44: ='Statement of cash flows'!M50 -> 0 | L44: ='Statement of cash flows'!P50 -> 0 | M44: ='Statement of cash flows'!S50 -> 0
B45: Proceeds from sale of property, plant and equipment | C45: ='Statement of cash flows'!C51 -> 782 | D45: ='Statement of cash flows'!D51 -> 2504 | E45: ='Statement of cash flows'!E51 -> 4897 | F45: ='Statement of cash flows'!H51 -> 6678 | G45: ='Statement of cash flows'!I51 -> 1464 | H45: ='Statement of cash flows'!J51 -> 2177 | I45: ='Statement of cash flows'!K51 -> 3906 | J45: ='Statement of cash flows'!L51 -> 5082 | K45: ='Statement of cash flows'!M51 -> 1100 | L45: ='Statement of cash flows'!P51 -> 1842 | M45: ='Statement of cash flows'!S51 -> 3553
B46: Proceeds from sale of subsidiaries | C46: ='Statement of cash flows'!C56 -> 0 | D46: ='Statement of cash flows'!D56 -> 0 | E46: ='Statement of cash flows'!E56 -> 2998 | F46: ='Statement of cash flows'!H56 -> 3461 | G46: ='Statement of cash flows'!I56 -> 1272 | H46: ='Statement of cash flows'!J56 -> 1272 | I46: ='Statement of cash flows'!K56 -> 1272 | J46: ='Statement of cash flows'!L56 -> 3891 | K46: ='Statement of cash flows'!M56 -> -86 | L46: ='Statement of cash flows'!P56 -> -86 | M46: ='Statement of cash flows'!S56 -> -129
B47: Proceeds from sale of associates | C47: ='Statement of cash flows'!C57 -> 0 | D47: ='Statement of cash flows'!D57 -> 2450 | E47: ='Statement of cash flows'!E57 -> 2450 | F47: ='Statement of cash flows'!H57 -> 2450 | G47: ='Statement of cash flows'!I57 -> 0 | H47: ='Statement of cash flows'!J57 -> 0 | I47: ='Statement of cash flows'!K57 -> 3010 | J47: ='Statement of cash flows'!L57 -> 3014 | K47: ='Statement of cash flows'!M57 -> 0 | L47: ='Statement of cash flows'!P57 -> 0 | M47: ='Statement of cash flows'!S57 -> 0
B48: Investments in associates | C48: ='Statement of cash flows'!C54 -> -1415 | D48: ='Statement of cash flows'!D54 -> -1415 | E48: ='Statement of cash flows'!E54 -> -1460 | F48: ='Statement of cash flows'!H54 -> -1460 | G48: ='Statement of cash flows'!I54 -> -60 | H48: ='Statement of cash flows'!J54 -> -60 | I48: ='Statement of cash flows'!K54 -> -1087 | J48: ='Statement of cash flows'!L54 -> -1087 | K48: ='Statement of cash flows'!M54 -> 0 | L48: ='Statement of cash flows'!P54 -> -700 | M48: ='Statement of cash flows'!S54 -> -1347
B49: Acquisition of subsidiaries, net of cash acquired | C49: ='Statement of cash flows'!C45 -> 0 | D49: ='Statement of cash flows'!D45 -> 69 | E49: ='Statement of cash flows'!E45 -> -262 | F49: ='Statement of cash flows'!H45 -> -262 | G49: ='Statement of cash flows'!I45 -> 0 | H49: ='Statement of cash flows'!J45 -> -4621 | I49: ='Statement of cash flows'!K45 -> -9821 | J49: ='Statement of cash flows'!L45 -> -10186 | K49: ='Statement of cash flows'!M45 -> -5158 | L49: ='Statement of cash flows'!P45 -> -7134 | M49: ='Statement of cash flows'!S45 -> -12989
B50: Free cash flow | C50: =SUM(C39:C49) -> 17478 | D50: 24832 | E50: =SUM(E39:E49) -> 49627 | F50: 63094 | G50: =SUM(G39:G49) -> -13704 | H50: -9973 | I50: =SUM(I39:I49) -> -5887 | J50: 27659 | K50: =SUM(K39:K49) -> -33590 | L50: -13603 | M50: =SUM(M39:M49) -> 35527

Sheet Debt repayment schedule
B2: As of September 30, 2022 | C2: Q4 2022 | D2: 2023 | E2: 2024 | F2: 2025 | G2: 2026 | H2: 2027 | I2: Thereafter
B3: MTS Group
B5: Debt repayments, RUB bln | C5: 55.4 | D5: 116.6 | E5: 102.9 | F5: 169.1 | G5: 50 | H5: 22 | I5: 0
B7: Maturities of major publicly traded debt instruments*
B8: 2023 Eurobond, USD mln*** | D8: 500
B10: *Amounts before discounts
B11: *** MTS currently holds USD 69.6 mln worth of 2023 Eurobonds on its balance sheet

Sheet Ave Forex Rates
B2: MTS Group | D2: 2018 | I2: 2019 | N2: 2020 | S2: 2021 | X2: 2022
B3: Average Forex rates per country | D3: Q1 | E3: Q2 | F3: Q3 | G3: Q4 | H3: Full year | I3: Q1 | J3: Q2 | K3: Q3 | L3: Q4 | M3: Full year | N3: Q1 | O3: Q2 | P3: Q3 | Q3: Q4 | R3: Full year | S3: Q1 | T3: Q2 | U3: Q3 | V3: Q4 | W3: Full year | X3: Q1 | Y3: Q2 | Z3: Q3
B5: Russia | C5: RUB/USD | D5: 56.88 | E5: 61.8 | F5: 65.5 | G5: 66.5 | H5: 62.71 | I5: 66.13 | J5: 64.56 | K5: 64.57 | L5: 63.72 | M5: 64.74 | N5: 66.38 | O5: 72.36 | P5: 73.56 | Q5: 76.22 | R5: 72.146445 | S5: 74.34 | T5: 74.22 | U5: 73.47 | V5: 72.6 | W5: 73.65 | X5: 86.07 | Y5: 66.63 | Z5: 59.43
B6: Turkmenistan | C6: TMT/RUB | D6: 0.06 | E6: 0.057 | F6: 0.05 | G6: 0.05 | H6: 0.06 | I6: 0.05 | J6: 0.05 | K6: 0.054 | L6: 0.055 | M6: 0.054 | N6: 0.053 | O6: 0.048 | P6: 0.048 | Q6: 0.046 | R6: 0.049 | S6: 0.047 | T6: 0.047 | U6: 0.047 | V6: 0.048 | W6: 0.048 | X6: 0.042 | Y6: 0.054 | Z6: 0.059
B7: Armenia | C7: AMD/RUB | D7: 8.47 | E7: 7.82 | F7: 7.37 | G7: 7.3 | H7: 7.74 | I7: 7.37 | J7: 7.45 | K7: 7.38 | L7: 7.49 | M7: 7.42 | N7: 7.31 | O7: 6.7 | P7: 6.61 | Q7: 6.61 | R7: 6.81 | S7: 7.05 | T7: 7.01 | U7: 6.67 | V7: 6.67 | W7: 6.84 | X7: 6.67 | Y7: 6.85 | Z7: 6.89
B8: Belarus | C8: BYN/RUB | D8: 0.03 | E8: 0.03 | F8: 0.03 | G8: 0.03 | H8: 0.03 | I8: 0.03 | J8: 0.03 | K8: 0.03 | L8: 0.03 | M8: 0.03 | N8: 0.03 | O8: 0.03 | P8: 0.03 | Q8: 0.03 | R8: 0.03 | S8: 0.03 | T8: 0.03 | U8: 0.03 | V8: 0.03 | W8: 0.03 | X8: 0.03 | Y8: 0.04 | Z8: 0.04

Sheet Glossary
G2: Glossary
